{"text_format":"1","workbook":"xlsx","n_sheets":15,"sheets":["BESTELKNOPPEN","SCHUIFPOORT SPARTA","SCHUIFPOORT CRATOS","SCHUIFPOORT RAIL","DRAAIPOORT ENKEL","VARIANTEN ENKELE DRAAIPOORT","AUTOMATISERING ENKELE DRAAIPOOR","DRAAIPOORT DUBBEL","VARIANTEN DUBBELE DRAAIPOORT","AUTOMATISERING DUBBELE DRAAIPOO","MODIUS ENKEL","MODIUS DUBBEL","STYX ENKEL","STYX DUBBEL","SPIJLENHEKWERK"],"not_rendered":{"charts":0,"images":15,"macros":1,"external_links":0,"defined_names":15,"comments":0,"pivot_tables":0},"unopened":[],"bounds":{"document_bytes":16777216,"sheet_cells":100000,"rows_first":2000,"rows_last":500,"rows_between":2000,"halvings":0,"cell_chars":16384,"cell_head_chars":4096},"cells_cut":0,"cells_raw":0,"read":"whole","date_system":"1900"}

{"sheet":"BESTELKNOPPEN","index":0,"n_rows":20,"n_cols":32,"rows_kept":20,"cut":false,"hidden":false,"merged":[[23,0,24,4],[23,5,24,9],[23,10,24,14],[23,15,24,19],[19,10,20,14],[19,15,20,19],[19,0,20,9],[11,20,12,24],[15,20,16,24],[5,10,6,14],[5,15,6,19],[9,15,10,19],[11,15,12,19],[13,15,14,19],[13,20,14,24],[15,15,16,19],[11,7,12,11],[13,6,14,11],[15,4,16,11],[30,13,30,22],[34,24,34,26],[36,23,36,26],[38,23,38,26],[42,21,42,24],[59,5,59,26],[60,5,60,26],[43,21,43,24],[44,21,44,24],[55,5,55,26],[56,5,56,26],[57,5,57,26],[58,5,58,26],[0,31,0,45],[1,31,1,45],[9,0,10,6],[9,7,10,11],[0,8,0,22],[1,8,1,22],[2,8,2,22],[9,20,10,24],[5,0,6,9]]}
["Orderdatum:",null,null,null,null,null,null,null,{"$f":"TODAY()","v":"2016-07-22"},null,null,null,null,null,null,null,null,null,null,null,null,null,null,null,"Ingevuld door:",null,null,null,null,null,null,"-"]
["Bedrijfsnaam:",null,null,null,null,null,null,null,"-",null,null,null,null,null,null,null,null,null,null,null,null,null,null,null,"Uw referentie:",null,null,null,null,null,null,"-"]
["Contactpersoon:",null,null,null,null,null,null,null,"-"]
[]
[]
["SCHUIFPOORTEN"]
[]
[]
[]
["DRAAIPOORTEN",null,null,null,null,null,null,"ENKEL"]
[]
[null,null,null,null,null,null,null,"DUBBEL"]
[]
[null,null,null,null,null,null,"VARIANTEN"]
[]
[null,null,null,null,"AUTOMATISERING"]
[]
[]
[]
["SPIJLENHEKWERK"]

{"sheet":"SCHUIFPOORT SPARTA","index":1,"n_rows":58,"n_cols":44,"rows_kept":58,"cut":false,"hidden":false,"merged":[[0,8,0,22],[1,8,1,22],[30,37,30,45],[2,8,2,22],[0,31,0,45],[1,31,1,45],[4,11,4,22],[5,11,5,22],[8,8,8,16],[8,19,8,29],[10,35,10,38],[24,36,24,45],[26,40,26,45],[53,7,53,45],[51,7,51,45],[6,11,6,22],[7,8,7,22],[52,7,52,45],[50,7,50,45],[10,8,10,10],[34,19,34,21]]}
["Orderdatum:",null,null,null,null,null,null,null,{"$f":"TODAY()","v":"2016-07-22"},null,null,null,null,null,null,null,null,null,null,null,null,null,null,null,"Ingevuld door:",null,null,null,null,null,null,{"$f":"BESTELKNOPPEN!AF1","v":"-"}]
["Bedrijfsnaam:",null,null,null,null,null,null,null,{"$f":"BESTELKNOPPEN!I2","v":"-"},null,null,null,null,null,null,null,null,null,null,null,null,null,null,null,"Uw referentie:",null,null,null,null,null,null,{"$f":"BESTELKNOPPEN!AF2","v":"-"}]
["Contactpersoon:",null,null,null,null,null,null,null,{"$f":"BESTELKNOPPEN!I3","v":"-"}]
[null,null,null,null,null,null,null,null,null,null,null,null,null,null,null,null,null,null,null,null,null,null,null,null,"Lossen:",null,null,null,null,null,"Op projectlokatie met kraan"]
["Afleveradres:",null,null,null,null,null,"Straat:",null,null,null,null,null,null,null,null,null,null,null,null,null,null,null,null,null,null,null,null,null,null,null,"Op projectlokatie zonder kraan"]
[null,null,null,null,null,null,"Postcode:",null,null,null,null,null,null,null,null,null,null,null,null,null,null,null,null,null,null,null,null,null,null,null,"Op klantlokatie met zelflosser"]
[null,null,null,null,null,null,"Plaats:",null,null,null,null,null,null,null,null,null,null,null,null,null,null,null,null,null,null,null,null,null,null,null,"Op klantlokatie ongelost"]
["Bedrijfsnaam:",null,null,null,null,null,null,null,"",null,null,null,null,null,null,null,null,null,null,null,null,null,null,null,"Tijdslevering:",null,null,null,null,null,null,null,"Nee",null,null,null,"08 - 10u",null,null,null,null,null,"10 - 12u"]
["Contactpersoon:",null,null,null,null,null,null,null,"",null,null,null,null,null,null,null,null,"Tel:",null,"",null,null,null,null,null,null,null,null,null,null,null,null,"Ja",null,null,null,"12 - 14u",null,null,null,null,null,"14 - 16u"]
[null,null,null,null,null,null,null,null,null,null,null,null,null,null,null,null,null,null,null,null,null,null,null,null,null,null,null,null,null,null,null,null,null,null,null,null,"Andere tijd, namelijk:"]
["Aantal poorten:",null,null,null,null,null,null,null,1,null,null,"stuk(s)",null,null,null,null,null,null,null,null,null,null,null,null,null,null,null,null,null,null,null,null,null,null,null,null,null,null,null,"uur"]
[]
["Type poort:",null,null,null,null,null,null,null,"Vesta",null,null,null,null,null,null,null,"Orion",null,null,null,null,null,null,null,"Minerva",null,null,null,null,null,null,null,"Arena",null,null,null,null,null,null,"Tyro"]
[null,null,null,null,null,null,null,"Ronde spijlen",null,null,null,null,null,null,null,"Ronde spijlen",null,null,null,null,null,null,null,"Dubbelstaaf",null,null,null,null,null,null,null,"Vierkante spijlen 45°",null,null,null,null,null,null,"Vierkante spijlen"]
[null,null,null,null,null,null,null,"Niet doorstekend",null,null,null,null,null,null,null,"Doorstekend",null,null,null,null,null,null,null,"8/6/8 mm",null,null,null,null,null,null,null,"Doorstekend",null,null,null,null,null,null,"Niet doorstekend"]
[]
[]
[]
[]
[null,null,null,null,null,null,null,null,"Puntenkam",null,null,null,null,null,null,null,"Afgeschuind",null,null,null,null,null,null,null,"Puntenkam",null,null,null,null,null,null,null,"Afgeschuind",null,null,null,null,null,null,"Puntenkam"]
[null,null,null,null,null,null,null,null,"Geen puntenkam",null,null,null,null,null,null,null,"Recht",null,null,null,null,null,null,null,"Geen puntenkam",null,null,null,null,null,null,null,"Recht",null,null,null,null,null,null,"Geen puntenkam"]
[]
["Spijlen hoh (mm):",null,null,null,null,null,null,null,"150 (standaard)",null,null,null,null,null,null,"132",null,null,null,null,null,null,"100"]
[]
["Doorgang (mm):",null,null,null,null,null,null,null,"3000",null,null,null,"4000",null,null,null,"5000",null,null,null,"6000",null,null,null,"7000",null,null,null,"8000",null,null,null,"Anders:"]
[]
["Hoogte (mm):",null,null,null,null,null,null,null,"1000",null,null,null,"1250",null,null,null,"1500",null,null,null,"1800",null,null,null,"2000",null,null,null,"2250",null,null,null,"2500",null,null,null,"Anders:"]
[]
["Conservering",null,null,null,null,null,null,null,"Gecoat (thermisch)",null,null,null,null,null,null,null,null,null,"Verzinkt (RAL n.v.t.)"]
[]
["Kleur (RAL):",null,null,null,null,null,null,null,"6005",null,null,null,null,"6009",null,null,null,null,"7016",null,null,null,null,"9005",null,null,null,null,"9010",null,null,null,null,"Anders:"]
[]
["Sluiting:",null,null,null,null,null,null,null,"Handbediend",null,null,null,null,null,null,null,null,null,"Geautomatiseerd + Matic SL",null,null,null,null,null,null,null,null,null,null,null,null,null,null,"Zonder slot"]
[]
["Indien Matic SL:",null,null,null,null,null,null,"Opties:",null,null,null,null,"Extra handzenders",null,null,null,null,null,null,null,null,null,"stuk(s)",null,null,null,"Doorgang verlichting"]
[null,null,null,null,null,null,null,null,null,null,null,null,"Codepaneel buiten",null,null,null,null,null,null,null,null,null,null,null,null,null,"Nooddrukknop"]
[null,null,null,null,null,null,null,null,null,null,null,null,"Codepaneel binnen",null,null,null,null,null,null,null,null,null,null,null,null,null,"Sleutelschakelaar buiten",null,null,null,null,null,null,null,null,null,"Cilinder",null,null,null,"incl.",null,null,"excl."]
[null,null,null,null,null,null,null,null,null,null,null,null,"GSM Module, excl. SIM-kaart",null,null,null,null,null,null,null,null,null,null,null,null,null,"Sleutelschakelaar binnen",null,null,null,null,null,null,null,null,null,"Cilinder",null,null,null,"incl.",null,null,"excl."]
[null,null,null,null,null,null,null,null,null,null,null,null,"Weekklok"]
[]
["Portalen:",null,null,null,null,null,null,null,"Portalen standaard op voetplaat gelijk aan maaiveld"]
[null,null,null,null,null,null,null,null,"Portalen 200 mm verlengd onder maaiveld"]
[null,null,null,null,null,null,null,null,"(Let op: indien verlengd i.c.m. Matic SL wordt de Matic SL voorzien van een extra opvulsteun)"]
[]
["Schuifrichting:",null,null,null,null,null,null,null,"Naar links",null,null,null,null,null,null,null,null,null,null,null,null,null,null,"Naar rechts",null,null,null,null,null,null,null,null,null,null,null,null,"(van buitenaf gezien)"]
[]
["Opties:",null,null,null,null,null,null,null,"Motorsteun"]
[null,null,null,null,null,null,null,null,"Gelijksluitende cilinders ",null,null,null,null,null,null,null,null,"(indien meerdere poorten)"]
[]
[]
["Opmerkingen:"]
[]
[null,null,null,null,null,null,null,""]
[null,null,null,null,null,null,null,""]
[]
["Matentabel (mm):",null,null,null,null,null,null,"Vrije doorgang",null,null,null,null,null,null,null,null,null,null,null,"3000",null,null,null,"4000",null,null,null,"5000",null,null,null,"6000",null,null,null,"7000",null,null,null,"8000"]
[null,null,null,null,null,null,null,"Vleugel lengte",null,null,null,null,null,null,null,null,null,null,null,"4250",null,null,null,"5500",null,null,null,"6750",null,null,null,"8000",null,null,null,"9500",null,null,null,"11000"]
[null,null,null,null,null,null,null,"Totaal benodigde ruimte",null,null,null,null,null,null,null,null,null,null,null,"7600",null,null,null,"9850",null,null,null,"12100",null,null,null,"14350",null,null,null,"16850",null,null,null,"19350"]

{"sheet":"SCHUIFPOORT CRATOS","index":2,"n_rows":58,"n_cols":44,"rows_kept":58,"cut":false,"hidden":false,"merged":[[25,40,25,45],[27,37,27,45],[23,36,23,45],[31,19,31,21],[53,7,53,45],[48,7,48,45],[49,7,49,45],[50,7,50,45],[51,7,51,45],[52,7,52,45],[38,28,39,45],[0,8,0,22],[0,31,0,45],[1,31,1,45],[10,8,10,10],[10,35,10,38],[1,8,1,22],[2,8,2,22],[4,11,4,22],[5,11,5,22],[6,11,6,22],[7,8,7,22],[8,8,8,16],[8,19,8,29]]}
["Orderdatum:",null,null,null,null,null,null,null,{"$f":"TODAY()","v":"2016-07-22"},null,null,null,null,null,null,null,null,null,null,null,null,null,null,null,"Ingevuld door:",null,null,null,null,null,null,{"$f":"BESTELKNOPPEN!AF1","v":"-"}]
["Bedrijfsnaam:",null,null,null,null,null,null,null,{"$f":"BESTELKNOPPEN!I2","v":"-"},null,null,null,null,null,null,null,null,null,null,null,null,null,null,null,"Uw referentie:",null,null,null,null,null,null,{"$f":"BESTELKNOPPEN!AF2","v":"-"}]
["Contactpersoon:",null,null,null,null,null,null,null,{"$f":"BESTELKNOPPEN!I3","v":"-"}]
[null,null,null,null,null,null,null,null,null,null,null,null,null,null,null,null,null,null,null,null,null,null,null,null,"Lossen:",null,null,null,null,null,"Op projectlokatie met kraan"]
["Afleveradres:",null,null,null,null,null,"Straat:",null,null,null,null,null,null,null,null,null,null,null,null,null,null,null,null,null,null,null,null,null,null,null,"Op projectlokatie zonder kraan"]
[null,null,null,null,null,null,"Postcode:",null,null,null,null,null,null,null,null,null,null,null,null,null,null,null,null,null,null,null,null,null,null,null,"Op klantlokatie met zelflosser"]
[null,null,null,null,null,null,"Plaats:",null,null,null,null,null,null,null,null,null,null,null,null,null,null,null,null,null,null,null,null,null,null,null,"Op klantlokatie ongelost"]
["Bedrijfsnaam:",null,null,null,null,null,null,null,null,null,null,null,null,null,null,null,null,null,null,null,null,null,null,null,"Tijdslevering:",null,null,null,null,null,null,null,"Nee",null,null,null,"08 - 10u",null,null,null,null,null,"10 - 12u"]
["Contactpersoon:",null,null,null,null,null,null,null,null,null,null,null,null,null,null,null,null,"Tel:",null,null,null,null,null,null,null,null,null,null,null,null,null,null,"Ja",null,null,null,"12 - 14u",null,null,null,null,null,"14 - 16u"]
[null,null,null,null,null,null,null,null,null,null,null,null,null,null,null,null,null,null,null,null,null,null,null,null,null,null,null,null,null,null,null,null,null,null,null,null,"Andere tijd, namelijk:"]
["Aantal poorten:",null,null,null,null,null,null,null,1,null,null,"stuk(s)",null,null,null,null,null,null,null,null,null,null,null,null,null,null,null,null,null,null,null,null,null,null,null,null,null,null,null,"uur"]
[]
["Type poort:",null,null,null,null,null,null,null,"Vesta",null,null,null,null,null,null,null,null,"Orion",null,null,null,null,null,null,null,null,"Minerva",null,null,null,null,null,null,null,null,"Arena"]
[null,null,null,null,null,null,null,"Ronde spijlen",null,null,null,null,null,null,null,null,"Ronde spijlen",null,null,null,null,null,null,null,null,"Dubbelstaaf",null,null,null,null,null,null,null,null,"Vierkante spijlen 45°"]
[null,null,null,null,null,null,null,"Niet doorstekend",null,null,null,null,null,null,null,null,"Doorstekend",null,null,null,null,null,null,null,null,"8/6/8 mm",null,null,null,null,null,null,null,null,"Doorstekend"]
[]
[]
[]
[]
[]
[null,null,null,null,null,null,null,null,"Puntenkam",null,null,null,null,null,null,null,null,"Afgeschuind",null,null,null,null,null,null,null,null,"Puntenkam",null,null,null,null,null,null,null,null,"Afgeschuind"]
[null,null,null,null,null,null,null,null,"Geen puntenkam",null,null,null,null,null,null,null,null,"Recht",null,null,null,null,null,null,null,null,"Geen puntenkam",null,null,null,null,null,null,null,null,"Recht"]
[]
["Doorgang (mm):",null,null,null,null,null,null,null,"4000",null,null,null,"5000",null,null,null,"6000",null,null,null,"7000",null,null,null,"8000",null,null,null,"9000",null,null,null,"Anders:"]
[]
["Hoogte (mm):",null,null,null,null,null,null,null,"1000",null,null,null,"1250",null,null,null,"1500",null,null,null,"1800",null,null,null,"2000",null,null,null,"2250",null,null,null,"2500",null,null,null,"Anders:"]
[]
["Kleur (RAL):",null,null,null,null,null,null,null,"6005",null,null,null,null,"6009",null,null,null,null,"7016",null,null,null,null,"9005",null,null,null,null,"9010",null,null,null,null,"Anders:"]
[]
["Sluiting:",null,null,null,null,null,null,null,"Handbediend",null,null,null,null,null,null,null,null,null,"Geautomatiseerd + Matic SL",null,null,null,null,null,null,null,null,null,null,null,null,null,null,"Zonder slot"]
[]
["Indien Matic SL:",null,null,null,null,null,null,"Opties:",null,null,null,null,"Extra handzenders",null,null,null,null,null,null,null,null,null,"stuk(s)",null,null,null,"Doorgang verlichting"]
[null,null,null,null,null,null,null,null,null,null,null,null,"Codepaneel buiten",null,null,null,null,null,null,null,null,null,null,null,null,null,"Nooddrukknop"]
[null,null,null,null,null,null,null,null,null,null,null,null,"Codepaneel binnen",null,null,null,null,null,null,null,null,null,null,null,null,null,"Sleutelschakelaar buiten",null,null,null,null,null,null,null,null,null,"Cilinder",null,null,null,"incl.",null,null,"excl."]
[null,null,null,null,null,null,null,null,null,null,null,null,"GSM Module, excl. SIM-kaart",null,null,null,null,null,null,null,null,null,null,null,null,null,"Sleutelschakelaar binnen",null,null,null,null,null,null,null,null,null,"Cilinder",null,null,null,"incl.",null,null,"excl."]
[null,null,null,null,null,null,null,null,null,null,null,null,"Weekklok"]
[]
["Portalen:",null,null,null,null,null,null,null,"Portalen standaard op voetplaat gelijk aan maaiveld"]
[null,null,null,null,null,null,null,null,"Portalen 200 mm verlengd onder maaiveld",null,null,null,null,null,null,null,null,null,null,null,null,null,null,null,null,null,null,null,"(Let op: indien verlengd i.c.m. Matic SL wordt de Matic SL voorzien van een extra opvulsteun)"]
[null,null,null,null,null,null,null,null,null,null,null,null,null,null,null,"Met motorsteun"]
[null,null,null,null,null,null,null,null,null,null,null,null,null,null,null,"Zonder motorsteun"]
[]
["Schuifrichting:",null,null,null,null,null,null,null,"Naar links",null,null,null,null,null,null,null,null,null,null,null,null,null,null,"Naar rechts",null,null,null,null,null,null,null,null,null,null,null,null,"(van buitenaf gezien)"]
[]
["Opties:",null,null,null,null,null,null,null,"Reflecterende strip 2-zijdig ROOD",null,null,null,null,null,null,null,null,null,null,null,null,null,null,"Gelijksluitende cilinders ",null,null,null,null,null,null,null,null,"(indien meerdere poorten)"]
[null,null,null,null,null,null,null,null,"Reflecterende strip 2-zijdig GRIJS",null,null,null,null,null,null,null,null,null,null,null,null,null,null,"Motorsteun"]
[null,null,null,null,null,null,null,null,null,null,null,null,null,null,null,null,null,null,null,null,null,null,null,"Verlengde boveninloop"]
[]
["Opmerkingen:"]
[]
[]
[]
[]
[]
[]
["Matentabel (mm):",null,null,null,null,null,null,"Vrije doorgang",null,null,null,null,null,null,null,null,null,null,null,"4000",null,null,null,"5000",null,null,null,"6000",null,null,null,"7000",null,null,null,"8000",null,null,null,"9000"]
[null,null,null,null,null,null,null,"Vleugel lengte",null,null,null,null,null,null,null,null,null,null,null,"5920",null,null,null,"6870",null,null,null,"8470",null,null,null,"9680",null,null,null,"11030",null,null,null,"12100"]
[null,null,null,null,null,null,null,"Totaal benodigde ruimte",null,null,null,null,null,null,null,null,null,null,null,"10320",null,null,null,"12220",null,null,null,"14920",null,null,null,"16740",null,null,null,"19480",null,null,null,"21400"]

{"sheet":"SCHUIFPOORT RAIL","index":3,"n_rows":57,"n_cols":44,"rows_kept":57,"cut":false,"hidden":false,"merged":[[0,8,0,22],[0,31,0,45],[1,8,1,22],[53,7,53,45],[45,7,45,45],[46,7,46,45],[47,7,47,45],[48,7,48,45],[49,7,49,45],[50,7,50,45],[51,7,51,45],[52,7,52,45],[25,40,25,45],[29,37,29,45],[33,19,33,21],[1,31,1,45],[2,8,2,22],[4,11,4,22],[5,11,5,22],[6,11,6,22],[23,32,23,45],[7,8,7,22],[8,8,8,16],[8,19,8,29],[10,8,10,10],[10,35,10,38]]}
["Orderdatum:",null,null,null,null,null,null,null,{"$f":"TODAY()","v":"2016-07-22"},null,null,null,null,null,null,null,null,null,null,null,null,null,null,null,"Ingevuld door:",null,null,null,null,null,null,{"$f":"BESTELKNOPPEN!AF1","v":"-"}]
["Bedrijfsnaam:",null,null,null,null,null,null,null,{"$f":"BESTELKNOPPEN!I2","v":"-"},null,null,null,null,null,null,null,null,null,null,null,null,null,null,null,"Uw referentie:",null,null,null,null,null,null,{"$f":"BESTELKNOPPEN!AF2","v":"-"}]
["Contactpersoon:",null,null,null,null,null,null,null,{"$f":"BESTELKNOPPEN!I3","v":"-"}]
[null,null,null,null,null,null,null,null,null,null,null,null,null,null,null,null,null,null,null,null,null,null,null,null,"Lossen:",null,null,null,null,null,"Op projectlokatie met kraan"]
["Afleveradres:",null,null,null,null,null,"Straat:",null,null,null,null,null,null,null,null,null,null,null,null,null,null,null,null,null,null,null,null,null,null,null,"Op projectlokatie zonder kraan"]
[null,null,null,null,null,null,"Postcode:",null,null,null,null,null,null,null,null,null,null,null,null,null,null,null,null,null,null,null,null,null,null,null,"Op klantlokatie met zelflosser"]
[null,null,null,null,null,null,"Plaats:",null,null,null,null,null,null,null,null,null,null,null,null,null,null,null,null,null,null,null,null,null,null,null,"Op klantlokatie ongelost"]
["Bedrijfsnaam:",null,null,null,null,null,null,null,null,null,null,null,null,null,null,null,null,null,null,null,null,null,null,null,"Tijdslevering:",null,null,null,null,null,null,null,"Nee",null,null,null,"08 - 10u",null,null,null,null,null,"10 - 12u"]
["Contactpersoon:",null,null,null,null,null,null,null,null,null,null,null,null,null,null,null,null,"Tel:",null,null,null,null,null,null,null,null,null,null,null,null,null,null,"Ja",null,null,null,"12 - 14u",null,null,null,null,null,"14 - 16u"]
[null,null,null,null,null,null,null,null,null,null,null,null,null,null,null,null,null,null,null,null,null,null,null,null,null,null,null,null,null,null,null,null,null,null,null,null,"Andere tijd, namelijk:"]
["Aantal poorten:",null,null,null,null,null,null,null,1,null,null,"stuk(s)",null,null,null,null,null,null,null,null,null,null,null,null,null,null,null,null,null,null,null,null,null,null,null,null,null,null,null,"uur"]
[]
["Type poort:",null,null,null,null,null,null,null,"Vesta",null,null,null,null,null,null,"Orion",null,null,null,null,null,null,"Minerva",null,null,null,null,null,null,"Arena",null,null,null,null,null,null,"Tyro",null,null,null,null,null,"Mykadoo"]
[null,null,null,null,null,null,null,"Ronde spijlen",null,null,null,null,null,null,"Ronde spijlen",null,null,null,null,null,null,"Dubbelstaaf",null,null,null,null,null,null,"Vierkante spijlen 45°",null,null,null,null,null,null,"Vierkante spijlen 90°",null,null,null,null,null,"Ronde spijlen"]
[null,null,null,null,null,null,null,"Niet doorstekend",null,null,null,null,null,null,"Doorstekend",null,null,null,null,null,null,"8/6/8 mm",null,null,null,null,null,null,"Doorstekend",null,null,null,null,null,null,"Niet doorstekend",null,null,null,null,null,"Motief"]
[]
[]
[]
[]
[null,null,null,null,null,null,null,null,"Puntenkam",null,null,null,null,null,null,"Afgeschuind",null,null,null,null,null,null,"Puntenkam",null,null,null,null,null,null,"Afgeschuind",null,null,null,null,null,null,"Puntenkam"]
[null,null,null,null,null,null,null,null,"Geen puntenkam",null,null,null,null,null,null,"Recht",null,null,null,null,null,null,"Geen puntenkam",null,null,null,null,null,null,"Recht",null,null,null,null,null,null,"Geen puntenkam"]
[]
["Doorgang (mm):",null,null,null,null,null,null,null,"3000",null,null,null,"4000",null,null,null,"5000",null,null,null,"6000",null,null,null,"7000"]
[null,null,null,null,null,null,null,null,"8000",null,null,null,"9000",null,null,null,"10000",null,null,null,"11000",null,null,null,"12000",null,null,null,"Anders: "]
[]
["Hoogte (mm):",null,null,null,null,null,null,null,"1000",null,null,null,"1250",null,null,null,"1500",null,null,null,"1800",null,null,null,"2000",null,null,null,"2250",null,null,null,"2500",null,null,null,"Anders:"]
[]
["Conservering",null,null,null,null,null,null,null,"Gecoat (thermisch)",null,null,null,null,null,null,null,null,null,"Gecoat (sendzimir, vleugels t/m 3000 mm)",null,null,null,null,null,null,null,null,null,null,null,null,null,null,null,null,null,"Verzinkt (RAL n.v.t.)"]
[]
["Kleur (RAL):",null,null,null,null,null,null,null,"6005",null,null,null,null,"6009",null,null,null,null,"7016",null,null,null,null,"9005",null,null,null,null,"9010",null,null,null,null,"Anders:"]
[]
["Sluiting:",null,null,null,null,null,null,null,"Handbediend",null,null,null,null,null,null,null,null,null,"Geautomatiseerd + Matic SL",null,null,null,null,null,null,null,null,null,null,null,null,null,null,"Zonder slot"]
[]
["Indien Matic SL:",null,null,null,null,null,null,"Opties:",null,null,null,null,"Extra handzenders",null,null,null,null,null,null,null,null,null,"stuk(s)",null,null,null,"Doorgang verlichting"]
[null,null,null,null,null,null,null,null,null,null,null,null,"Codepaneel buiten",null,null,null,null,null,null,null,null,null,null,null,null,null,"Nooddrukknop"]
[null,null,null,null,null,null,null,null,null,null,null,null,"Codepaneel binnen",null,null,null,null,null,null,null,null,null,null,null,null,null,"Sleutelschakelaar buiten",null,null,null,null,null,null,null,null,null,"Cilinder",null,null,null,"incl.",null,null,"excl."]
[null,null,null,null,null,null,null,null,null,null,null,null,"GSM Module, excl. SIM-kaart",null,null,null,null,null,null,null,null,null,null,null,null,null,"Sleutelschakelaar binnen",null,null,null,null,null,null,null,null,null,"Cilinder",null,null,null,"incl.",null,null,"excl."]
[null,null,null,null,null,null,null,null,null,null,null,null,"Weekklok"]
[]
["Schuifrichting:",null,null,null,null,null,null,null,"Naar links",null,null,null,null,null,null,null,null,null,null,null,null,null,null,"Naar rechts",null,null,null,null,null,null,null,null,null,null,null,null,"(van buitenaf gezien)"]
[]
["Opties:",null,null,null,null,null,null,null,"Rail voorzien van U-profiel (i.p.v. standaard S7 rail)"]
[null,null,null,null,null,null,null,null,"Onderbalk niet 650 mm verlengd"]
[null,null,null,null,null,null,null,null,"Gelijksluitende cilinders",null,null,null,null,null,null,null,null,"(indien meerdere poorten)"]
[]
["Opmerkingen:"]
[]
[]
[]
[]
[]
[]
[]
[]
[]
["Matentabel (mm):",null,null,null,null,null,null,"Vrije doorgang",null,null,null,null,null,null,null,"3000",null,null,"4000",null,null,"5000",null,null,"6000",null,null,"7000",null,null,"8000",null,null,"9000",null,null,"10000",null,null,"11000",null,null,"12000"]
[null,null,null,null,null,null,null,"Vleugel lengte",null,null,null,null,null,null,null,"3650",null,null,"4650",null,null,"5650",null,null,"6650",null,null,"7650",null,null,"8650",null,null,"9650",null,null,"10650",null,null,"11650",null,null,"12650"]

{"sheet":"DRAAIPOORT ENKEL","index":4,"n_rows":65,"n_cols":45,"rows_kept":65,"cut":false,"hidden":false,"merged":[[28,23,28,33],[32,23,32,33],[29,23,29,26],[33,23,33,26],[53,15,54,17],[49,7,49,45],[47,7,47,45],[48,7,48,45],[46,7,46,45],[50,7,50,45],[63,15,64,17],[61,15,62,17],[59,15,60,17],[57,15,58,17],[55,15,56,17],[0,8,0,22],[19,12,19,45],[21,36,21,45],[25,37,25,45],[0,31,0,45],[1,8,1,22],[1,31,1,45],[2,8,2,22],[4,8,4,10]]}
["Orderdatum:",null,null,null,null,null,null,null,{"$f":"TODAY()","v":"2016-07-22"},null,null,null,null,null,null,null,null,null,null,null,null,null,null,null,"Ingevuld door:",null,null,null,null,null,null,{"$f":"BESTELKNOPPEN!AF1","v":"-"}]
["Bedrijfsnaam:",null,null,null,null,null,null,null,{"$f":"BESTELKNOPPEN!I2","v":"-"},null,null,null,null,null,null,null,null,null,null,null,null,null,null,null,"Uw referentie:",null,null,null,null,null,null,{"$f":"BESTELKNOPPEN!AF2","v":"-"}]
["Contactpersoon:",null,null,null,null,null,null,null,{"$f":"BESTELKNOPPEN!I3","v":"-"}]
[]
["Aantal poorten:",null,null,null,null,null,null,null,1,null,null,"stuk(s)"]
[]
["Type:",null,null,null,null,null,null,null,"Vesta",null,null,null,null,null,null,"Orion",null,null,null,null,null,"Minerva",null,null,null,null,null,null,"Arena",null,null,null,null,null,"Tyro",null,null,null,null,null,"Mykadoo"]
[null,null,null,null,null,null,null,"Ronde spijlen",null,null,null,null,null,null,"Ronde spijlen",null,null,null,null,null,"Dubbelstaaf 8/6/8",null,null,null,null,null,null,"Vierkante spijlen",null,null,null,null,null,"Vierkante spijlen",null,null,null,null,null,"Ronde spijlen motief"]
[]
[]
[]
[]
[]
[null,null,null,null,null,null,null,null,"Puntenkam",null,null,null,null,null,null,"Afgeschuind",null,null,null,null,null,"Puntenkam",null,null,null,null,null,null,"Afgeschuind",null,null,null,null,null,"Puntenkam"]
[null,null,null,null,null,null,null,null,"Geen puntenkam",null,null,null,null,null,null,"Recht",null,null,null,null,null,"Geen puntenkam",null,null,null,null,null,null,"Recht",null,null,null,null,null,"Geen puntenkam"]
[]
["Scharnieren:",null,null,null,null,null,null,null,"180°",null,null,null,null,null,null,"90°"]
[]
["Breedte (mm)*:",null,null,null,null,null,null,null,"1000",null,null,null,"1250",null,null,null,"1500",null,null,null,"2000",null,null,null,"2500",null,null,null,"3000",null,null,null,"3500",null,null,null,"4000",null,null,null,"4500",null,null,null,"5000"]
["(*zie matentabel)",null,null,null,null,null,null,null,"Anders:"]
[]
["Hoogte (mm):",null,null,null,null,null,null,null,"1000",null,null,null,"1250",null,null,null,"1500",null,null,null,"1800",null,null,null,"2000",null,null,null,"2500",null,null,null,"Anders:"]
[]
["Conservering",null,null,null,null,null,null,null,"Gecoat (thermisch)",null,null,null,null,null,null,null,null,null,"Gecoat (sendzimir, vleugels t/m 3000 mm)",null,null,null,null,null,null,null,null,null,null,null,null,null,null,null,null,null,"Verzinkt (RAL n.v.t.)"]
[]
["Kleur (RAL):",null,null,null,null,null,null,null,"6005",null,null,null,null,"6009",null,null,null,null,"7016",null,null,null,null,"9005",null,null,null,null,"9010",null,null,null,null,"Anders:"]
[]
["Scharniert aan:",null,null,null,null,null,null,null,"Verlengde paal",null,null,null,null,null,null,"Paal op voetplaat",null,null,null,null,null,null,null,"Neppaal, 100 mm verlengd",null,null,null,null,null,null,null,null,null,null,null,"Muurplaatscharnieren"]
[null,null,null,null,null,null,null,"Gaaskam",null,null,null,null,null,"Nee",null,null,"Ja",null,null,null,null,null,null,"(Neppaal voorzien van montagegaten)",null,null,null,null,null,null,null,null,null,null,null,null,null,"Kort",null,null,null,"Hoek kort"]
[null,null,null,null,null,null,null,"Vloeiboren",null,null,null,null,null,"Nee",null,null,"Ja",null,"Aantal gaten",null,null,null,null,null,null,null,null,null,null,null,null,null,null,null,null,null,null,"Lang",null,null,null,"Hoek lang"]
[]
["Sluit op:",null,null,null,null,null,null,null,"Verlengde paal",null,null,null,null,null,null,"Paal op voetplaat",null,null,null,null,null,null,null,"Neppaal, 100 mm verlengd",null,null,null,null,null,null,null,null,null,null,null,"Muuraanslag"]
[null,null,null,null,null,null,null,"Gaaskam",null,null,null,null,null,"Nee",null,null,"Ja",null,null,null,null,null,null,"(Neppaal voorzien van montagegaten)",null,null,null,null,null,null,null,null,null,null,null,null,null,"Incl. montagekoker"]
[null,null,null,null,null,null,null,"Vloeiboren",null,null,null,null,null,"Nee",null,null,"Ja",null,"Aantal gaten"]
[]
["Draairichting:",null,null,null,null,null,null,null,"Links naar binnen",null,null,null,null,null,null,null,null,"Rechts naar binnen",null,null,null,null,null,null,null,null,"Links naar buiten",null,null,null,null,null,null,null,null,"Rechts naar buiten"]
["(van buitenaf gezien)"]
[]
[]
["Uitvoering:",null,null,null,null,null,null,null,"Handbediend",null,null,null,null,null,null,"Handbediend met varianten",null,null,null,null,null,null,null,null,null,null,null,null,null,null,"Voorbereid voor automatisering"]
[null,null,null,null,null,null,null,null,null,null,null,null,null,null,null,"(formulier varianten enkele draaipoort en/of voorbereiding automatisering toevoegen)"]
[]
["Extra:",null,null,null,null,null,null,null,"Bijlevereren undergatecatcher PRTVANGERUGC",null,null,null,null,null,null,null,null,null,null,null,null,null,null,null,null,null,null,null,null,null,null,"Gelaste paalkappen"]
[null,null,null,null,null,null,null,null,"Andere h.o.h. afstand spijlen",null,null,null,null,null,null,null,null,null,null,null,null,"100 mm",null,null,null,null,"132 mm",null,null,null,null,"Inwendige grondgrendel"]
[null,null,null,null,null,null,null,null,"Gelijksluitende cilinders",null,null,null,null,null,null,null,null,"(indien meerdere poorten)"]
[]
["Opmerkingen:"]
[]
[]
[]
[]
[]
["* Matentabel afstanden tussen de palen (mm):",null,null,null,null,null,null,null,null,null,null,null,null,null,null,null,null,null,null,null,null,"1000",null,"1250",null,"1500",null,"2000",null,"2500",null,"3000",null,"3500",null,"4000",null,"4500",null,"5000"]
[null,null,null,null,null,null,null,null,null,null,null,null,null,null,null,"Vesta",null,null,null,"180°",null,"1055",null,"1280",null,"1520",null,"2020",null,"2525",null,"3020",null,"3520",null,"4020",null,"4520",null,"5020"]
[null,null,null,null,null,null,null,null,null,null,null,null,null,null,null,null,null,null,null,"90°",null,"1085",null,"1310",null,"1550",null,"2050",null,"2550",null,"3050",null,"3550",null,"4060",null,"4560",null,"5060"]
[null,null,null,null,null,null,null,null,null,null,null,null,null,null,null,"Orion",null,null,null,"180°",null,"1055",null,"1280",null,"1520",null,"2020",null,"2525",null,"3020",null,"3520",null,"4020",null,"4520",null,"5020"]
[null,null,null,null,null,null,null,null,null,null,null,null,null,null,null,null,null,null,null,"90°",null,"1085",null,"1310",null,"1550",null,"2050",null,"2550",null,"3050",null,"3550",null,"4060",null,"4560",null,"5060"]
[null,null,null,null,null,null,null,null,null,null,null,null,null,null,null,"Minerva",null,null,null,"180°",null,"1055",null,"1280",null,"1520",null,"2020",null,"2525",null,"3020",null,"3520",null,"4020",null,"4520",null,"5020"]
[null,null,null,null,null,null,null,null,null,null,null,null,null,null,null,null,null,null,null,"90°",null,"1085",null,"1310",null,"1550",null,"2050",null,"2550",null,"3050",null,"3550",null,"4060",null,"4560",null,"5060"]
[null,null,null,null,null,null,null,null,null,null,null,null,null,null,null,"Arena",null,null,null,"180°",null,"1025",null,"1250",null,"1500",null,"2000",null,"2500",null,"3000",null,"3500",null,"4000",null,"4500",null,"5000"]
[null,null,null,null,null,null,null,null,null,null,null,null,null,null,null,null,null,null,null,"90°",null,"1055",null,"1280",null,"1530",null,"2030",null,"2530",null,"3030",null,"3530",null,"4040",null,"4540",null,"5040"]
[null,null,null,null,null,null,null,null,null,null,null,null,null,null,null,"Tyro",null,null,null,"180°",null,"1055",null,"1280",null,"1520",null,"2020",null,"2525",null,"3020",null,"3520",null,"4020",null,"4520",null,"5020"]
[null,null,null,null,null,null,null,null,null,null,null,null,null,null,null,null,null,null,null,"90°",null,"1085",null,"1310",null,"1550",null,"2050",null,"2550",null,"3050",null,"3550",null,"4060",null,"4560",null,"5060"]
[null,null,null,null,null,null,null,null,null,null,null,null,null,null,null,"Mykadoo",null,null,null,"180°",null,"1060",null,"1320",null,"1580",null,"2100",null,"2490",null,"3010",null,"3530",null,"4050",null,"4590",null,"5110"]
[null,null,null,null,null,null,null,null,null,null,null,null,null,null,null,null,null,null,null,"90°",null,"-",null,"-",null,"-",null,"-",null,"-",null,"-",null,"-",null,"-",null,"-",null,"-"]

{"sheet":"VARIANTEN ENKELE DRAAIPOORT","index":5,"n_rows":55,"n_cols":43,"rows_kept":55,"cut":false,"hidden":false,"merged":[[0,31,0,45],[1,31,1,45],[0,8,0,22],[1,8,1,22],[2,8,2,22],[57,8,57,45],[58,8,58,45],[7,25,7,29],[54,8,54,45],[55,8,55,45],[56,8,56,45]]}
["Orderdatum:",null,null,null,null,null,null,null,{"$f":"TODAY()","v":"2016-07-22"},null,null,null,null,null,null,null,null,null,null,null,null,null,null,null,"Ingevuld door:",null,null,null,null,null,null,{"$f":"BESTELKNOPPEN!AF1","v":"-"}]
["Bedrijfsnaam:",null,null,null,null,null,null,null,{"$f":"BESTELKNOPPEN!I2","v":"-"},null,null,null,null,null,null,null,null,null,null,null,null,null,null,null,"Uw referentie:",null,null,null,null,null,null,{"$f":"BESTELKNOPPEN!AF2","v":"-"}]
["Contactpersoon:",null,null,null,null,null,null,null,{"$f":"BESTELKNOPPEN!I3","v":"-"}]
[]
["Halve maanplaat:",null,null,null,null,null,null,null,null,"Bijleveren, niet geassembleerd"]
[null,null,null,null,null,null,null,null,null,"Bijleveren, geassembleerd"]
[null,null,null,null,null,null,null,null,null,"Uitvoering:",null,null,null,null,null,"Aluminium"]
[null,null,null,null,null,null,null,null,null,null,null,null,null,null,null,"Aluminium en gecoat RAL"]
[]
["Slot:",null,null,null,null,null,null,null,"(inclusief voorbereiding en assemblage op poortvleugel en/of poortpaal i.p.v. standaard Locinox slot met aanslag)"]
[null,null,null,null,null,null,null,null,null,"Inlasslot, compleet met aanslag",null,null,null,null,null,null,null,null,null,null,null,null,null,null,null,null,null,null,null,null,"In combinatie met vast-/draaiknop op rozet"]
[null,null,null,null,null,null,null,null,null,"Inlasslot met panieksluiting, compleet met aanslag",null,null,null,null,null,null,null,null,null,null,null,null,null,null,null,null,null,null,null,null,"In combinatie met vast-/draaiknop op rozet"]
[null,null,null,null,null,null,null,null,null,"Inlasslot met dubbele cilinder, compleet met aanslag"]
[null,null,null,null,null,null,null,null,null,"Locinox standaard slot met dubbele cilinder LDKZD1, compleet met aanslag"]
[null,null,null,null,null,null,null,null,null,"Locinox mechanisch codeslot VINCI, compleet met aanslag - dubbelzijdig bedienbaar"]
[null,null,null,null,null,null,null,null,null,"Locinox mechanisch codeslot FREE VINCI, compleet met aanslag - beveiligde ingang en vrije uitgang"]
[null,null,null,null,null,null,null,null,null,null,null,null,null,null,null,"Inclusief PUSHBAR"]
[null,null,null,null,null,null,null,null,null,null,null,null,null,null,null,"Inclusief Push-set in aluminium 3006PUSH"]
[null,null,null,null,null,null,null,null,null,"Locinox Hybride slot H-METAL, compleet met aanslag "]
[null,null,null,null,null,null,null,null,null,"Locinox Electrisch slot LEKQ U4, compleet met aanslag en bolkrukpaar"]
[null,null,null,null,null,null,null,null,null,null,null,null,null,null,null,"Voeding AC-TRANS -12V/25W toevoegen"]
[null,null,null,null,null,null,null,null,null,null,null,null,null,null,null,"Doorvoerkabel DVK-HD toevoegen"]
[null,null,null,null,null,null,null,null,null,"Smalslot, compleet met aanslag"]
[null,null,null,null,null,null,null,null,null,"Magneetslot met handvatten"]
[null,null,null,null,null,null,null,null,null,null,null,null,null,null,null,"MAG2500 met 250 kg kleefkracht met handvatten"]
[null,null,null,null,null,null,null,null,null,null,null,null,null,null,null,"MAG5000 met 500 kg kleefkracht met handvatten"]
[null,null,null,null,null,null,null,null,null,null,null,null,null,null,null,"MAGMAG2500 met 250 kg kleefkracht zonder handvatten"]
[null,null,null,null,null,null,null,null,null,null,null,null,null,null,null,"MAGMAG5000 met 500 kg kleefkracht zonder handvatten"]
[null,null,null,null,null,null,null,null,null,null,null,null,null,null,null,null,null,null,"Voeding DC-ACCES -12V/20W toevoegen"]
[null,null,null,null,null,null,null,null,null,null,null,null,null,null,null,null,null,null,"Voeding DC-POWER -24V/25W toevoegen"]
[null,null,null,null,null,null,null,null,null,null,null,null,null,null,null,null,null,null,"Doorvoerkabel DVK-HD toevoegen"]
[null,null,null,null,null,null,null,null,null,null,null,null,null,null,null,null,null,null,"Aluminium gecoate trafobox PB-1 toevoegen"]
[null,null,null,null,null,null,null,null,null,null,null,null,null,null,null,null,null,null,"Uitvulprofiel (voor MAG2500 en MAGMAG2500) toevoegen"]
[null,null,null,null,null,null,null,null,null,"Poort met gekozen slot extra uitvoeren met aangelaste lippen geschikt voor hangslot",null,null,null,null,null,null,null,null,null,null,null,null,null,null,null,null,null,null,null,null,null,null,null,null,null,null,null,null,null,null,"(exclusief hangslot)"]
[]
[]
["Elektrische",null,null,null,null,null,null,null,null,"Elektrische ontsluiter Emissa - Impuls SE.E - krukpaar vervangen door aluminium bolkrukset 3006KR"]
["ontsluiter:",null,null,null,null,null,null,null,null,"Elektrische ontsluiter Ruptura - Impuls SE.R - krukpaar vervangen door aluminium bolkrukset 3006KR"]
[null,null,null,null,null,null,null,null,null,"(let op: indien slot Hybride H-METAL van toepassing is dan wordt hiervoor de elektrische ontsluiter aangepast voor dit slot)"]
[null,null,null,null,null,null,null,null,null,"Elektrische ontsluiter geschikt voor smalslot type DI10U"]
[null,null,null,null,null,null,null,null,null,null,null,null,null,null,null,null,null,null,null,null,null,null,null,null,null,null,null,null,null,null,null,null,null,null,null,null,"Maximale",null,null,null,null,null,"Maximale"]
[null,null,null,null,null,null,null,null,null,null,null,null,null,null,null,null,null,null,null,null,null,null,null,null,null,null,null,null,null,null,null,null,null,null,null,null,"vleugelbreedte",null,null,null,null,null,"gewicht"]
["Poortsluiter /",null,null,null,null,null,null,null,null,"Instelbare poortsluiter SAMSON 2",null,null,null,null,null,null,null,null,null,null,null,null,null,null,null,null,null,null,null,null,null,null,null,null,null,null,"2000 mm",null,null,null,null,null,"150 kg"]
["Opbouwdranger:",null,null,null,null,null,null,null,null,"Hydraulische poortsluiter en 180° scharnier in één MAMMOTH-180",null,null,null,null,null,null,null,null,null,null,null,null,null,null,null,null,null,null,null,null,null,null,null,null,null,null,"1200 mm",null,null,null,null,null,"120 kg"]
[null,null,null,null,null,null,null,null,null,null,null,null,null,null,null,null,null,null,null,null,null,null,null,null,null,"Zilver",null,null,null,null,"Zwart"]
[null,null,null,null,null,null,null,null,null,"Hydraulische verticale poortsluiter t.b.v. 180° scharnier VERTICLOSE-STD ",null,null,null,null,null,null,null,null,null,null,null,null,null,null,null,null,null,null,null,null,null,null,null,null,null,null,"1200 mm",null,null,null,null,null,"120 kg"]
[null,null,null,null,null,null,null,null,null,"Hydraulische verticale poortsluiter t.b.v. 90° scharnier VERTICLOSE-RAIL",null,null,null,null,null,null,null,null,null,null,null,null,null,null,null,null,null,null,null,null,null,null,null,null,null,null,"1500 mm",null,null,null,null,null,"150 kg"]
[null,null,null,null,null,null,null,null,null,"Hydraulische verticale poortsluiter t.b.v. 180° scharnier TIGER",null,null,null,null,null,null,null,null,null,null,null,null,null,null,null,null,null,null,null,null,null,null,null,null,null,null,"900 mm",null,null,null,null,null,"100 kg"]
[null,null,null,null,null,null,null,null,null,"Hydraulische verticale poortsluiter i.c.m. 180° scharnieren REALCLOSE",null,null,null,null,null,null,null,null,null,null,null,null,null,null,null,null,null,null,null,null,null,null,null,null,null,null,"1200 mm",null,null,null,null,null,"150 kg"]
["Poortsluiter /"]
["Inbouwdranger:",null,null,null,null,null,null,null,null,"Inbouwdranger vloerveer DORMA"]
[]
["Scharnieren uit de haak:",null,null,null,null,null,null,null,null,null,null,"Poort zelfsluitend voor scharnieren uit de haak"]
[]
["Opmerkingen:"]

{"sheet":"AUTOMATISERING ENKELE DRAAIPOOR","index":6,"n_rows":33,"n_cols":45,"rows_kept":33,"cut":false,"hidden":false,"merged":[[38,11,38,45],[33,11,33,45],[34,11,34,45],[35,11,35,45],[36,11,36,45],[37,11,37,45],[21,39,21,43],[21,25,21,34],[14,39,14,45],[15,39,15,45],[17,39,17,45],[14,33,14,35],[15,33,15,35],[16,33,16,35],[17,33,17,35],[11,32,11,45],[11,14,11,27],[0,8,0,22],[0,31,0,45],[1,8,1,22],[1,31,1,45],[2,8,2,22]]}
["Orderdatum:",null,null,null,null,null,null,null,{"$f":"TODAY()","v":"2016-07-22"},null,null,null,null,null,null,null,null,null,null,null,null,null,null,null,"Ingevuld door:",null,null,null,null,null,null,{"$f":"BESTELKNOPPEN!AF1","v":"-"}]
["Bedrijfsnaam:",null,null,null,null,null,null,null,{"$f":"BESTELKNOPPEN!I2","v":"-"},null,null,null,null,null,null,null,null,null,null,null,null,null,null,null,"Uw referentie:",null,null,null,null,null,null,{"$f":"BESTELKNOPPEN!AF2","v":"-"}]
["Contactpersoon:",null,null,null,null,null,null,null,{"$f":"BESTELKNOPPEN!I3","v":"-"}]
[]
[]
["Elektrisch voorbereid voor:",null,null,null,null,null,null,null,null,null,null,"(Slot, aanslag en vergrendelstangen komen te vervallen)"]
[null,null,null,null,null,null,null,null,null,null,null,"(Benodigde draaipunten van de motorset dienen te worden aangeleverd)"]
[null,null,null,null,null,null,null,null,null,null,null,null,"Opbouw aandrijving"]
[null,null,null,null,null,null,null,null,null,null,null,null,"Inbouw / grondaandrijving INCLUSIEF gelaste motorsteun aan de poortpaal"]
[null,null,null,null,null,null,null,null,null,null,null,null,"Inbouw / grondaandrijving EXCLUSIEF gelaste motorsteun aan de poortpaal"]
[]
[null,null,null,null,null,null,null,null,null,null,null,"Merk:",null,null,null,null,null,null,null,null,null,null,null,null,null,null,null,null,null,"Type:"]
[]
["Uitsparingen:",null,null,null,null,null,null,null,null,null,null,null,"Geen uitsparingen of gaten"]
[null,null,null,null,null,null,null,null,null,null,null,null,"Fotocelgaten inclusief kabelgaten",null,null,null,null,null,null,null,null,null,null,null,null,null,null,null,null,null,null,null,"Aantal sets:",null,null,null,"Type:"]
[null,null,null,null,null,null,null,null,null,null,null,null,"Alleen fotocelgaten",null,null,null,null,null,null,null,null,null,null,null,null,null,null,null,null,null,null,null,"Aantal sets:",null,null,null,"Type:"]
[null,null,null,null,null,null,null,null,null,null,null,null,"Alleen kabelgaten",null,null,null,null,null,null,null,null,null,null,null,null,null,null,null,null,null,null,null,"Aantal:"]
[null,null,null,null,null,null,null,null,null,null,null,null,"Uitsparing sleutelschakelaar",null,null,null,null,null,null,null,null,null,null,null,null,null,null,null,null,null,null,null,"Aantal:",null,null,null,"Type:"]
[null,null,null,null,null,null,null,null,null,null,null,null,null,null,null,null,"In linker poortpaal van buitenaf gezien"]
[null,null,null,null,null,null,null,null,null,null,null,null,null,null,null,null,"In rechter poortpaal van buitenaf gezien"]
[null,null,null,null,null,null,null,null,null,null,null,null,null,null,null,null,"In beide poortpalen"]
[null,null,null,null,null,null,null,null,null,null,null,null,"Uitsparing t.b.v. intercom",null,null,null,null,null,null,null,null,null,"Type:",null,null,null,null,null,null,null,null,null,null,null,null,"Afmeting:",null,null,null,null,null,null,null,null,"mm"]
[null,null,null,null,null,null,null,null,null,null,null,null,null,null,null,null,"In linker poortpaal van buitenaf gezien"]
[null,null,null,null,null,null,null,null,null,null,null,null,null,null,null,null,"In rechter poortpaal van buitenaf gezien"]
[]
["Revisieklep:",null,null,null,null,null,null,null,null,null,null,null,"90 x 180 mm",null,null,null,null,null,null,null,"110 x 180 mm",null,null,null,null,null,null,null,"130 x 180 mm",null,null,null,null,null,null,null,"180 x 180 mm"]
["(afmeting)"]
[null,null,null,null,null,null,null,null,null,null,null,null,"In linker poortpaal van buitenaf gezien"]
[null,null,null,null,null,null,null,null,null,null,null,null,"In rechter poortpaal van buitenaf gezien"]
[null,null,null,null,null,null,null,null,null,null,null,null,"In beide poortpalen"]
[]
[]
["Opmerkingen:",null,null,null,null,null,null,null,null,null,null,"(hier aangeven waar en welke zijdes/hoogtesvan buitenaf gezien eventuele uitsparingen komen)"]

{"sheet":"DRAAIPOORT DUBBEL","index":7,"n_rows":63,"n_cols":44,"rows_kept":63,"cut":false,"hidden":false,"merged":[[46,7,46,45],[53,15,54,17],[55,15,56,17],[57,15,58,17],[59,15,60,17],[47,7,47,45],[61,15,62,17],[48,7,48,45],[51,15,52,17],[0,8,0,22],[17,12,17,45],[19,36,19,45],[23,37,23,45],[0,31,0,45],[1,8,1,22],[1,31,1,45],[2,8,2,22],[4,8,4,10],[26,23,26,33],[30,23,30,33],[27,23,27,26],[31,23,31,26]]}
["Orderdatum:",null,null,null,null,null,null,null,{"$f":"TODAY()","v":"2016-07-22"},null,null,null,null,null,null,null,null,null,null,null,null,null,null,null,"Ingevuld door:",null,null,null,null,null,null,{"$f":"BESTELKNOPPEN!AF1","v":"-"}]
["Bedrijfsnaam:",null,null,null,null,null,null,null,{"$f":"BESTELKNOPPEN!I2","v":"-"},null,null,null,null,null,null,null,null,null,null,null,null,null,null,null,"Uw referentie:",null,null,null,null,null,null,{"$f":"BESTELKNOPPEN!AF2","v":"-"}]
["Contactpersoon:",null,null,null,null,null,null,null,{"$f":"BESTELKNOPPEN!I3","v":"-"}]
[]
["Aantal poorten:",null,null,null,null,null,null,null,1,null,null,"stuk(s)"]
[]
["Type:",null,null,null,null,null,null,null,"Vesta",null,null,null,null,null,null,"Orion",null,null,null,null,null,"Minerva",null,null,null,null,null,null,"Arena",null,null,null,null,null,"Tyro",null,null,null,null,null,"Mykadoo"]
[null,null,null,null,null,null,null,"Ronde spijlen",null,null,null,null,null,null,"Ronde spijlen",null,null,null,null,null,"Dubbelstaaf 8/6/8",null,null,null,null,null,null,"Vierkante spijlen",null,null,null,null,null,"Vierkante spijlen",null,null,null,null,null,"Ronde spijlen motief"]
[]
[]
[]
[null,null,null,null,null,null,null,null,"Puntenkam",null,null,null,null,null,null,"Afgeschuind",null,null,null,null,null,"Puntenkam",null,null,null,null,null,null,"Afgeschuind",null,null,null,null,null,"Puntenkam"]
[null,null,null,null,null,null,null,null,"Geen puntenkam",null,null,null,null,null,null,"Recht",null,null,null,null,null,"Geen puntenkam",null,null,null,null,null,null,"Recht",null,null,null,null,null,"Geen puntenkam"]
[]
["Scharnieren:",null,null,null,null,null,null,null,"180°",null,null,null,null,null,null,"90°"]
[]
["Breedte (mm)*:",null,null,null,null,null,null,null,"2000",null,null,null,"2500",null,null,null,"3000",null,null,null,"4000",null,null,null,"5000",null,null,null,"6000",null,null,null,"7000",null,null,null,"8000",null,null,null,"9000",null,null,"10000"]
["(*zie matentabel)",null,null,null,null,null,null,null,"Anders:"]
[]
["Hoogte (mm):",null,null,null,null,null,null,null,"1000",null,null,null,"1250",null,null,null,"1500",null,null,null,"1800",null,null,null,"2000",null,null,null,"2500",null,null,null,"Anders:"]
[]
["Conservering",null,null,null,null,null,null,null,"Gecoat (thermisch)",null,null,null,null,null,null,null,null,null,"Gecoat (sendzimir, vleugels t/m 3000 mm)",null,null,null,null,null,null,null,null,null,null,null,null,null,null,null,null,null,"Verzinkt (RAL n.v.t.)"]
[]
["Kleur (RAL):",null,null,null,null,null,null,null,"6005",null,null,null,null,"6009",null,null,null,null,"7016",null,null,null,null,"9005",null,null,null,null,"9010",null,null,null,null,"Anders:"]
[]
["Linker paal",null,null,null,null,null,null,null,"Verlengde paal",null,null,null,null,null,null,"Paal op voetplaat",null,null,null,null,null,null,null,"Neppaal, 100 mm verlengd",null,null,null,null,null,null,null,null,null,null,null,"Muurplaatscharnieren"]
["(van buitenaf gezien)",null,null,null,null,null,null,"Gaaskam",null,null,null,null,null,"Nee",null,null,"Ja",null,null,null,null,null,null,"(Neppaal voorzien van montagegaten)",null,null,null,null,null,null,null,null,null,null,null,null,null,"Kort",null,null,null,"Hoek kort"]
[null,null,null,null,null,null,null,"Vloeiboren",null,null,null,null,null,"Nee",null,null,"Ja",null,"Aantal gaten",null,null,null,null,null,null,null,null,null,null,null,null,null,null,null,null,null,null,"Lang",null,null,null,"Hoek lang"]
[]
["Rechter paal:",null,null,null,null,null,null,null,"Verlengde paal",null,null,null,null,null,null,"Paal op voetplaat",null,null,null,null,null,null,null,"Neppaal, 100 mm verlengd",null,null,null,null,null,null,null,null,null,null,null,"Muurplaatscharnieren"]
["(van buitenaf gezien)",null,null,null,null,null,null,"Gaaskam",null,null,null,null,null,"Nee",null,null,"Ja",null,null,null,null,null,null,"(Neppaal voorzien van montagegaten)",null,null,null,null,null,null,null,null,null,null,null,null,null,"Kort",null,null,null,"Hoek kort"]
[null,null,null,null,null,null,null,"Vloeiboren",null,null,null,null,null,"Nee",null,null,"Ja",null,"Aantal gaten",null,null,null,null,null,null,null,null,null,null,null,null,null,null,null,null,null,null,"Lang",null,null,null,"Hoek lang"]
[]
["Draairichting:",null,null,null,null,null,null,null,"Naar binnen",null,null,null,null,null,null,null,null,null,null,null,null,null,null,null,"Naar buiten"]
["(van buitenaf gezien)"]
[]
[]
["Uitvoering:",null,null,null,null,null,null,null,"Handbediend",null,null,null,null,null,null,"Handbediend met varianten",null,null,null,null,null,null,null,null,null,null,null,null,null,null,"Voorbereid voor automatisering"]
[null,null,null,null,null,null,null,null,null,null,null,null,null,null,null,"(formulier varianten dubbele draaipoort en/of voorbereiding automatisering toevoegen)"]
[null,null,null,null,null,null,null,null,"Indien handbediend:",null,null,null,null,null,null,null,null,"Slot in linkervleugel",null,null,null,null,null,null,null,null,"Slot in rechtervleugel (standaard)"]
[]
["Extra:",null,null,null,null,null,null,null,"Bijleveren beton aanslagblok LAAG - BETONAANSLGB",null,null,null,null,null,null,null,null,null,null,null,null,null,null,null,null,null,null,null,null,null,"Gelaste paalkappen"]
[null,null,null,null,null,null,null,null,"Bijleveren beton aanslagblok HOOG - BETONAANSLGBH",null,null,null,null,null,null,null,null,null,null,null,null,null,null,null,null,null,null,null,null,null,"Inwendige grondgrendel 2e poortvleugel"]
[null,null,null,null,null,null,null,null,"Andere h.o.h. afstand spijlen",null,null,null,null,null,null,null,null,null,null,null,"100 mm",null,null,null,null,"132 mm",null,null,null,null,"Bijlevereren undergatecatcher - PRTVANGERUGC"]
[null,null,null,null,null,null,null,null,"Gelijksluitende cilinders",null,null,null,null,null,null,null,null,"(indien meerdere poorten)"]
[]
["Opmerkingen:"]
[]
[]
[]
["* Matentabel afstanden tussen de palen (mm):",null,null,null,null,null,null,null,null,null,null,null,null,null,null,null,null,null,null,null,null,"2000",null,"2500",null,"3000",null,"4000",null,"5000",null,"6000",null,"7000",null,"8000",null,"9000",null,"10000"]
[null,null,null,null,null,null,null,null,null,null,null,null,null,null,null,"Vesta",null,null,null,"180°",null,"2070",null,"2520",null,"3000",null,"4000",null,"5000",null,"6000",null,"7000",null,"8000",null,"9000",null,"10000"]
[null,null,null,null,null,null,null,null,null,null,null,null,null,null,null,null,null,null,null,"90°",null,"2130",null,"2580",null,"3060",null,"4060",null,"5060",null,"6060",null,"7060",null,"8080",null,"9080",null,"10080"]
[null,null,null,null,null,null,null,null,null,null,null,null,null,null,null,"Orion",null,null,null,"180°",null,"2070",null,"2520",null,"3000",null,"4000",null,"5000",null,"6000",null,"7000",null,"8000",null,"9000",null,"10000"]
[null,null,null,null,null,null,null,null,null,null,null,null,null,null,null,null,null,null,null,"90°",null,"2130",null,"2580",null,"3060",null,"4060",null,"5060",null,"6060",null,"7060",null,"8080",null,"9080",null,"10080"]
[null,null,null,null,null,null,null,null,null,null,null,null,null,null,null,"Minerva",null,null,null,"180°",null,"2070",null,"2520",null,"3000",null,"4000",null,"5000",null,"6000",null,"7000",null,"8000",null,"9000",null,"10000"]
[null,null,null,null,null,null,null,null,null,null,null,null,null,null,null,null,null,null,null,"90°",null,"2130",null,"2580",null,"3060",null,"4060",null,"5060",null,"6060",null,"7060",null,"8080",null,"9080",null,"10080"]
[null,null,null,null,null,null,null,null,null,null,null,null,null,null,null,"Arena",null,null,null,"180°",null,"2010",null,"2500",null,"3000",null,"4000",null,"5000",null,"6000",null,"7000",null,"8000",null,"9000",null,"10000"]
[null,null,null,null,null,null,null,null,null,null,null,null,null,null,null,null,null,null,null,"90°",null,"2070",null,"2560",null,"3060",null,"4060",null,"5060",null,"6060",null,"7060",null,"8080",null,"9080",null,"10080"]
[null,null,null,null,null,null,null,null,null,null,null,null,null,null,null,"Tyro",null,null,null,"180°",null,"2070",null,"2520",null,"3000",null,"4000",null,"5000",null,"6000",null,"7000",null,"8000",null,"9000",null,"10000"]
[null,null,null,null,null,null,null,null,null,null,null,null,null,null,null,null,null,null,null,"90°",null,"2130",null,"2580",null,"3060",null,"4060",null,"5060",null,"6060",null,"7060",null,"8080",null,"9080",null,"10080"]
[null,null,null,null,null,null,null,null,null,null,null,null,null,null,null,"Mykadoo",null,null,null,"180°",null,"2080",null,"2600",null,"3120",null,"4160",null,"4940",null,"5980",null,"7020",null,"8060",null,"9140",null,"10180"]
[null,null,null,null,null,null,null,null,null,null,null,null,null,null,null,null,null,null,null,"90°",null,"-",null,"-",null,"-",null,"-",null,"-",null,"-",null,"-",null,"-",null,"-",null,"-"]

{"sheet":"VARIANTEN DUBBELE DRAAIPOORT","index":8,"n_rows":41,"n_cols":41,"rows_kept":41,"cut":false,"hidden":false,"merged":[[41,8,41,45],[42,8,42,45],[43,8,43,45],[44,8,44,45],[0,8,0,22],[40,8,40,45],[0,31,0,45],[1,8,1,22],[1,31,1,45],[2,8,2,22],[7,25,7,29]]}
["Orderdatum:",null,null,null,null,null,null,null,{"$f":"TODAY()","v":"2016-07-22"},null,null,null,null,null,null,null,null,null,null,null,null,null,null,null,"Ingevuld door:",null,null,null,null,null,null,{"$f":"BESTELKNOPPEN!AF1","v":"-"}]
["Bedrijfsnaam:",null,null,null,null,null,null,null,{"$f":"BESTELKNOPPEN!I2","v":"-"},null,null,null,null,null,null,null,null,null,null,null,null,null,null,null,"Uw referentie:",null,null,null,null,null,null,{"$f":"BESTELKNOPPEN!AF2","v":"-"}]
["Contactpersoon:",null,null,null,null,null,null,null,{"$f":"BESTELKNOPPEN!I3","v":"-"}]
[]
["Halve maanplaat:",null,null,null,null,null,null,null,null,"Bijleveren, niet geassembleerd",null,null,null,null,null,null,null,null,null,null,null,null,null,null,null,null,"Beide poortvleugels"]
[null,null,null,null,null,null,null,null,null,"Bijleveren, geassembleerd",null,null,null,null,null,null,null,null,null,null,null,null,null,null,null,null,"Alleen linkervleugel van buitenaf gezien"]
[null,null,null,null,null,null,null,null,null,"Uitvoering:",null,null,null,null,null,"Aluminium",null,null,null,null,null,null,null,null,null,null,"Alleen rechtervleugel van buitenaf gezien"]
[null,null,null,null,null,null,null,null,null,null,null,null,null,null,null,"Aluminium en gecoat RAL"]
[]
["Slot:",null,null,null,null,null,null,null,"(inclusief voorbereiding en assemblage op poortvleugel en/of poortpaal i.p.v. standaard Locinox slot met aanslag)"]
[null,null,null,null,null,null,null,null,null,"Inlasslot, compleet met aanslag",null,null,null,null,null,null,null,null,null,null,null,null,null,null,null,null,null,null,null,null,"In combinatie met vast-/draaiknop op rozet"]
[null,null,null,null,null,null,null,null,null,"Inlasslot met panieksluiting, compleet met aanslag",null,null,null,null,null,null,null,null,null,null,null,null,null,null,null,null,null,null,null,null,"In combinatie met vast-/draaiknop op rozet"]
[null,null,null,null,null,null,null,null,null,"Inlasslot met dubbele cilinder, compleet met aanslag"]
[null,null,null,null,null,null,null,null,null,"Locinox standaard slot met dubbele cilinder LDKZD1, compleet met aanslag"]
[null,null,null,null,null,null,null,null,null,"Locinox mechanisch codeslot VINCI, compleet met aanslag - dubbelzijdig bedienbaar"]
[null,null,null,null,null,null,null,null,null,"Locinox mechanisch codeslot FREE VINCI, compleet met aanslag - beveiligde ingang en vrije uitgang"]
[null,null,null,null,null,null,null,null,null,null,null,null,null,null,null,"Inclusief PUSHBAR"]
[null,null,null,null,null,null,null,null,null,null,null,null,null,null,null,"Inclusief Push-set in aluminium 3006PUSH"]
[null,null,null,null,null,null,null,null,null,"Locinox Hybride slot H-METAL, compleet met aanslag "]
[null,null,null,null,null,null,null,null,null,"Locinox Electrisch slot LEKQ U4, compleet met aanslag en bolkrukpaar"]
[null,null,null,null,null,null,null,null,null,null,null,null,null,null,null,"Voeding AC-TRANS -12V/25W toevoegen"]
[null,null,null,null,null,null,null,null,null,null,null,null,null,null,null,"Doorvoerkabel DVK-HD toevoegen"]
[null,null,null,null,null,null,null,null,null,"Smalslot, compleet met aanslag"]
[null,null,null,null,null,null,null,null,null,"Magneetslot met handvatten"]
[null,null,null,null,null,null,null,null,null,null,null,null,null,null,null,"MAG2500 met 250 kg kleefkracht met handvatten"]
[null,null,null,null,null,null,null,null,null,null,null,null,null,null,null,"MAG5000 met 500 kg kleefkracht met handvatten"]
[null,null,null,null,null,null,null,null,null,null,null,null,null,null,null,"MAGMAG2500 met 250 kg kleefkracht zonder handvatten"]
[null,null,null,null,null,null,null,null,null,null,null,null,null,null,null,"MAGMAG5000 met 500 kg kleefkracht zonder handvatten"]
[null,null,null,null,null,null,null,null,null,null,null,null,null,null,null,null,null,null,"Voeding DC-ACCES -12V/20W toevoegen"]
[null,null,null,null,null,null,null,null,null,null,null,null,null,null,null,null,null,null,"Voeding DC-POWER -24V/25W toevoegen"]
[null,null,null,null,null,null,null,null,null,null,null,null,null,null,null,null,null,null,"Doorvoerkabel DVK-HD toevoegen"]
[null,null,null,null,null,null,null,null,null,null,null,null,null,null,null,null,null,null,"Aluminium gecoate trafobox PB-1 toevoegen"]
[null,null,null,null,null,null,null,null,null,null,null,null,null,null,null,null,null,null,"Uitvulprofiel (voor MAG2500 en MAGMAG2500) toevoegen"]
[null,null,null,null,null,null,null,null,null,"Poort met gekozen slot extra uitvoeren met aangelaste lippen geschikt voor hangslot",null,null,null,null,null,null,null,null,null,null,null,null,null,null,null,null,null,null,null,null,null,null,null,null,null,null,null,null,null,null,"(exclusief hangslot)"]
[]
["Elektrische",null,null,null,null,null,null,null,null,"Elektrische ontsluiter Emissa - Impuls SE.E - krukpaar vervangen door aluminium bolkrukset 3006KR"]
["ontsluiter:",null,null,null,null,null,null,null,null,"Elektrische ontsluiter Ruptura - Impuls SE.R - krukpaar vervangen door aluminium bolkrukset 3006KR"]
[null,null,null,null,null,null,null,null,null,"(let op: indien slot Hybride H-METAL van toepassing is dan wordt hiervoor de elektrische ontsluiter aangepast voor dit slot)"]
[null,null,null,null,null,null,null,null,null,"Elektrische ontsluiter geschikt voor smalslot type DI10U"]
[]
["Opmerkingen:"]

{"sheet":"AUTOMATISERING DUBBELE DRAAIPOO","index":9,"n_rows":32,"n_cols":45,"rows_kept":32,"cut":false,"hidden":false,"merged":[[0,31,0,45],[1,8,1,22],[1,31,1,45],[2,8,2,22],[10,14,10,27],[10,32,10,45],[0,8,0,22],[37,11,37,45],[20,25,20,34],[20,39,20,43],[13,33,13,35],[13,39,13,45],[14,33,14,35],[14,39,14,45],[15,33,15,35],[16,33,16,35],[16,39,16,45],[32,11,32,45],[33,11,33,45],[34,11,34,45],[35,11,35,45],[36,11,36,45]]}
["Orderdatum:",null,null,null,null,null,null,null,{"$f":"TODAY()","v":"2016-07-22"},null,null,null,null,null,null,null,null,null,null,null,null,null,null,null,"Ingevuld door:",null,null,null,null,null,null,{"$f":"BESTELKNOPPEN!AF1","v":"-"}]
["Bedrijfsnaam:",null,null,null,null,null,null,null,{"$f":"BESTELKNOPPEN!I2","v":"-"},null,null,null,null,null,null,null,null,null,null,null,null,null,null,null,"Uw referentie:",null,null,null,null,null,null,{"$f":"BESTELKNOPPEN!AF2","v":"-"}]
["Contactpersoon:",null,null,null,null,null,null,null,{"$f":"BESTELKNOPPEN!I3","v":"-"}]
[]
["Elektrisch voorbereid voor:",null,null,null,null,null,null,null,null,null,null,"(Slot, aanslag en vergrendelstangen komen te vervallen)"]
[null,null,null,null,null,null,null,null,null,null,null,"(Benodigde draaipunten van de motorset dienen te worden aangeleverd)"]
[null,null,null,null,null,null,null,null,null,null,null,null,"Opbouw aandrijving"]
[null,null,null,null,null,null,null,null,null,null,null,null,"Inbouw / grondaandrijving INCLUSIEF gelaste motorsteun aan de poortpaal"]
[null,null,null,null,null,null,null,null,null,null,null,null,"Inbouw / grondaandrijving EXCLUSIEF gelaste motorsteun aan de poortpaal"]
[]
[null,null,null,null,null,null,null,null,null,null,null,"Merk:",null,null,null,null,null,null,null,null,null,null,null,null,null,null,null,null,null,"Type:"]
[]
["Uitsparingen:",null,null,null,null,null,null,null,null,null,null,null,"Geen uitsparingen of gaten"]
[null,null,null,null,null,null,null,null,null,null,null,null,"Fotocelgaten inclusief kabelgaten",null,null,null,null,null,null,null,null,null,null,null,null,null,null,null,null,null,null,null,"Aantal sets:",null,null,null,"Type:"]
[null,null,null,null,null,null,null,null,null,null,null,null,"Alleen fotocelgaten",null,null,null,null,null,null,null,null,null,null,null,null,null,null,null,null,null,null,null,"Aantal sets:",null,null,null,"Type:"]
[null,null,null,null,null,null,null,null,null,null,null,null,"Alleen kabelgaten",null,null,null,null,null,null,null,null,null,null,null,null,null,null,null,null,null,null,null,"Aantal:"]
[null,null,null,null,null,null,null,null,null,null,null,null,"Uitsparing sleutelschakelaar",null,null,null,null,null,null,null,null,null,null,null,null,null,null,null,null,null,null,null,"Aantal:",null,null,null,"Type:"]
[null,null,null,null,null,null,null,null,null,null,null,null,null,null,null,null,"In linker poortpaal van buitenaf gezien"]
[null,null,null,null,null,null,null,null,null,null,null,null,null,null,null,null,"In rechter poortpaal van buitenaf gezien"]
[null,null,null,null,null,null,null,null,null,null,null,null,null,null,null,null,"In beide poortpalen"]
[null,null,null,null,null,null,null,null,null,null,null,null,"Uitsparing t.b.v. intercom",null,null,null,null,null,null,null,null,null,"Type:",null,null,null,null,null,null,null,null,null,null,null,null,"Afmeting:",null,null,null,null,null,null,null,null,"mm"]
[null,null,null,null,null,null,null,null,null,null,null,null,null,null,null,null,"In linker poortpaal van buitenaf gezien"]
[null,null,null,null,null,null,null,null,null,null,null,null,null,null,null,null,"In rechter poortpaal van buitenaf gezien"]
[]
["Revisieklep:",null,null,null,null,null,null,null,null,null,null,null,"90 x 180 mm",null,null,null,null,null,null,null,"110 x 180 mm",null,null,null,null,null,null,null,"130 x 180 mm",null,null,null,null,null,null,null,"180 x 180 mm"]
["(afmeting)"]
[null,null,null,null,null,null,null,null,null,null,null,null,"In linker poortpaal van buitenaf gezien"]
[null,null,null,null,null,null,null,null,null,null,null,null,"In rechter poortpaal van buitenaf gezien"]
[null,null,null,null,null,null,null,null,null,null,null,null,"In beide poortpalen"]
[]
[]
["Opmerkingen:",null,null,null,null,null,null,null,null,null,null,"(hier aangeven waar en welke zijdes/hoogtesvan buitenaf gezien eventuele uitsparingen komen)"]

{"sheet":"MODIUS ENKEL","index":10,"n_rows":62,"n_cols":42,"rows_kept":62,"cut":false,"hidden":false,"merged":[[54,8,54,45],[22,30,23,38],[50,8,50,45],[51,8,51,45],[32,40,32,45],[33,29,33,31],[36,25,36,28],[40,25,40,28],[53,8,53,45],[52,8,52,45],[35,24,35,33],[39,24,39,33],[0,31,0,45],[1,8,1,22],[1,31,1,45],[2,8,2,22],[4,8,4,10],[0,8,0,22]]}
["Orderdatum:",null,null,null,null,null,null,null,{"$f":"TODAY()","v":"2016-07-22"},null,null,null,null,null,null,null,null,null,null,null,null,null,null,null,"Ingevuld door:",null,null,null,null,null,null,{"$f":"BESTELKNOPPEN!AF1","v":"-"}]
["Bedrijfsnaam:",null,null,null,null,null,null,null,{"$f":"BESTELKNOPPEN!I2","v":"-"},null,null,null,null,null,null,null,null,null,null,null,null,null,null,null,"Uw referentie:",null,null,null,null,null,null,{"$f":"BESTELKNOPPEN!AF2","v":"-"}]
["Contactpersoon:",null,null,null,null,null,null,null,{"$f":"BESTELKNOPPEN!I3","v":"-"}]
[]
["Aantal poorten:",null,null,null,null,null,null,null,1,null,null,"stuk(s)"]
[]
["Type:",null,null,null,null,null,null,null,null,"Trento V10",null,null,null,null,null,null,null,"Trento H20",null,null,null,null,null,null,null,"Trento H40",null,null,null,null,null,null,null,"Trento V40",null,null,null,null,null,null,null,"Crosso V10"]
[null,null,null,null,null,null,null,null,"Vert. lamel 100 mm",null,null,null,null,null,null,null,"Hor. lamel 200 mm",null,null,null,null,null,null,null,"Hor. lamel 40x20 mm",null,null,null,null,null,null,null,"Hor. lamel 60x20",null,null,null,null,null,null,null,"Vert. lamel 100 mm"]
[null,null,null,null,null,null,null,null,"Gesloten",null,null,null,null,null,null,null,"Gesloten",null,null,null,null,null,null,null,"Halfopen ca. 21 mm",null,null,null,null,null,null,null,"Halfopen ca. 25 mm",null,null,null,null,null,null,null,"Gesloten - kruis"]
[]
[]
[]
[]
[]
[null,null,null,null,null,null,null,null,null,"Crosso V60",null,null,null,null,null,null,null,"Modeno H60",null,null,null,null,null,null,null,"Modeno V60",null,null,null,null,null,null,null,"Polkadot R10",null,null,null,null,null,null,null,"Carré K10"]
[null,null,null,null,null,null,null,null,"Hor. lamel 60x20 mm",null,null,null,null,null,null,null,"Hor. lamel 60x20 mm",null,null,null,null,null,null,null,"Vert. lamel 60x20 mm",null,null,null,null,null,null,null,"Perfoplaat",null,null,null,null,null,null,null,"Perfoplaat"]
[null,null,null,null,null,null,null,null,"Halfopen ca. 25 mm - kruis",null,null,null,null,null,null,null,"Diagonaal",null,null,null,null,null,null,null,"Diagonaal",null,null,null,null,null,null,null,"Rond R10",null,null,null,null,null,null,null,"Vierkant K10"]
[]
[]
[]
[]
[]
[null,null,null,null,null,null,null,null,null,null,null,null,null,null,null,null,null,null,null,null,null,null,null,null,null,null,null,null,null,null,"(Bovenaanzicht richting lamellen van buitenaf gezien)"]
[]
["Dranger:",null,null,null,null,null,null,null,null,"Inclusief Mammoth poortsluiter"]
[null,null,null,null,null,null,null,null,null,null,null,"Zilver",null,null,null,null,"Zwart",null,null,"(Dranger is standaard bij poortbreedte 1062 en 1263 mm. Niet mogelijk bij bredere poorten)"]
[null,null,null,null,null,null,null,null,null,"Exclusief Mammoth poortsluiter"]
[]
["Breedte (mm):",null,null,null,null,null,null,null,null,"1000",null,null,null,null,null,null,null,"1250",null,null,null,null,null,null,null,"1500",null,null,null,null,null,null,null,"2000",null,null,null,null,null,null,null,"2500"]
[]
["Hoogte (mm):",null,null,null,null,null,null,null,null,"1500",null,null,null,null,null,null,null,"1800",null,null,null,null,null,null,null,"2000",null,null,null,"(bodemvrijheid is 50 mm)"]
[]
["Kleur (RAL):",null,null,null,null,null,null,null,null,"6005",null,null,null,null,"6009",null,null,null,null,"7016",null,null,null,null,"9005",null,null,null,null,"9010",null,null,null,null,null,null,"Anders:"]
[]
["Scharniert aan:",null,null,null,null,null,null,null,null,"Verlengde paal",null,null,null,null,null,null,"Paal op voetplaat",null,null,null,null,null,null,null,"Neppaal, 100 mm verlengd"]
[null,null,null,null,null,null,null,null,"Gaaskam",null,null,null,null,null,"Nee",null,null,"Ja",null,null,null,null,null,null,"(Neppaal voorzien van montagegaten)"]
[null,null,null,null,null,null,null,null,"Vloeiboren",null,null,null,null,null,"Nee",null,null,"Ja",null,null,"Aantal gaten:"]
[]
["Sluit op:",null,null,null,null,null,null,null,null,"Verlengde paal",null,null,null,null,null,null,"Paal op voetplaat",null,null,null,null,null,null,null,"Neppaal, 100 mm verlengd",null,null,null,null,null,null,null,null,null,null,null,"Muuraanslag"]
[null,null,null,null,null,null,null,null,"Gaaskam",null,null,null,null,null,"Nee",null,null,"Ja",null,null,null,null,null,null,"(Neppaal voorzien van montagegaten)",null,null,null,null,null,null,null,null,null,null,null,"Incl. montagekoker"]
[null,null,null,null,null,null,null,null,"Vloeiboren",null,null,null,null,null,"Nee",null,null,"Ja",null,null,"Aantal gaten:"]
[]
["Draairichting:",null,null,null,null,null,null,null,null,"Links naar binnen",null,null,null,null,null,null,null,null,"Rechts naar binnen",null,null,null,null,null,null,null,null,"Links naar buiten",null,null,null,null,null,null,null,null,"Rechts naar buiten"]
["(van buitenaf gezien)"]
[]
[]
["Extra:",null,null,null,null,null,null,null,null,"Bijlevereren undergatecatcher PRTVANGERUGC"]
[null,null,null,null,null,null,null,null,null,"Gelaste paalkappen"]
[null,null,null,null,null,null,null,null,null,"Bijleveren aluminium hoekprofielen om doorkijk te voorkomen (excl. assemblage)"]
[null,null,null,null,null,null,null,null,null,"Gelijksluitende cilinders",null,null,null,null,null,null,null,null,"(indien meerdere poorten)"]
[]
["Opmerkingen:"]
[]
[]
[]
[]
["* Matentabel afstanden tussen de palen (mm):",null,null,null,null,null,null,null,null,null,null,null,null,null,null,null,null,null,null,null,null,"1000",null,"1250",null,"1500",null,"2000",null,"2500"]
[null,null,null,null,null,null,null,null,null,null,null,null,null,null,null,"Trento",null,null,null,null,null,"1062",null,"1263",null,"1564",null,"2007",null,"2509"]
[null,null,null,null,null,null,null,null,null,null,null,null,null,null,null,"Crosso",null,null,null,"V60",null,"1062",null,"1263",null,"1564",null,"2007",null,"2509"]
[null,null,null,null,null,null,null,null,null,null,null,null,null,null,null,null,null,null,null,"V10",null,"1062",null,"1191",null,"1564",null,"2007",null,"2509"]
[null,null,null,null,null,null,null,null,null,null,null,null,null,null,null,"Modeno",null,null,null,null,null,"1066",null,"1241",null,"1591",null,"2015",null,"2483"]
[null,null,null,null,null,null,null,null,null,null,null,null,null,null,null,"Polkadot",null,null,null,null,null,"1062",null,"1263",null,"1564",null,"2007",null,"2509"]

{"sheet":"MODIUS DUBBEL","index":11,"n_rows":59,"n_cols":42,"rows_kept":59,"cut":false,"hidden":false,"merged":[[46,8,46,45],[50,8,50,45],[47,8,47,45],[48,8,48,45],[49,8,49,45],[0,8,0,22],[0,31,0,45],[1,8,1,22],[1,31,1,45],[2,8,2,22],[33,24,33,27],[4,8,4,10],[18,30,19,38],[25,40,25,45],[27,40,27,45],[29,24,29,27],[28,24,28,33],[32,24,32,33]]}
["Orderdatum:",null,null,null,null,null,null,null,{"$f":"TODAY()","v":"2016-07-22"},null,null,null,null,null,null,null,null,null,null,null,null,null,null,null,"Ingevuld door:",null,null,null,null,null,null,{"$f":"BESTELKNOPPEN!AF1","v":"-"}]
["Bedrijfsnaam:",null,null,null,null,null,null,null,{"$f":"BESTELKNOPPEN!I2","v":"-"},null,null,null,null,null,null,null,null,null,null,null,null,null,null,null,"Uw referentie:",null,null,null,null,null,null,{"$f":"BESTELKNOPPEN!AF2","v":"-"}]
["Contactpersoon:",null,null,null,null,null,null,null,{"$f":"BESTELKNOPPEN!I3","v":"-"}]
[]
["Aantal poorten:",null,null,null,null,null,null,null,1,null,null,"stuk(s)"]
[]
["Type:",null,null,null,null,null,null,null,null,"Trento V10",null,null,null,null,null,null,null,"Trento H20",null,null,null,null,null,null,null,"Trento H40",null,null,null,null,null,null,null,"Trento V40",null,null,null,null,null,null,null,"Crosso V10"]
[null,null,null,null,null,null,null,null,"Vert. lamel 100 mm",null,null,null,null,null,null,null,"Hor. lamel 200 mm",null,null,null,null,null,null,null,"Hor. lamel 40x20 mm",null,null,null,null,null,null,null,"Hor. lamel 60x20",null,null,null,null,null,null,null,"Vert. lamel 100 mm"]
[null,null,null,null,null,null,null,null,"Gesloten",null,null,null,null,null,null,null,"Gesloten",null,null,null,null,null,null,null,"Halfopen ca. 21 mm",null,null,null,null,null,null,null,"Halfopen ca. 25 mm",null,null,null,null,null,null,null,"Gesloten - kruis"]
[]
[]
[]
[null,null,null,null,null,null,null,null,null,"Crosso V60",null,null,null,null,null,null,null,"Modeno H60",null,null,null,null,null,null,null,"Modeno V60",null,null,null,null,null,null,null,"Polkadot R10",null,null,null,null,null,null,null,"Carré K10"]
[null,null,null,null,null,null,null,null,"Hor. lamel 60x20 mm",null,null,null,null,null,null,null,"Hor. lamel 60x20 mm",null,null,null,null,null,null,null,"Vert. lamel 60x20 mm",null,null,null,null,null,null,null,"Perfoplaat",null,null,null,null,null,null,null,"Perfoplaat"]
[null,null,null,null,null,null,null,null,"Halfopen ca. 25 mm - kruis",null,null,null,null,null,null,null,"Diagonaal",null,null,null,null,null,null,null,"Diagonaal",null,null,null,null,null,null,null,"Rond R10",null,null,null,null,null,null,null,"Vierkant K10"]
[]
[]
[]
[null,null,null,null,null,null,null,null,null,null,null,null,null,null,null,null,null,null,null,null,null,null,null,null,null,null,null,null,null,null,"(Bovenaanzicht richting lamellen van buitenaf gezien)"]
[]
[]
["Breedte (mm):",null,null,null,null,null,null,null,null,"2000",null,null,null,null,null,null,null,"2500",null,null,null,null,null,null,null,"3000",null,null,null,null,null,null,null,"4000",null,null,null,null,null,null,null,"5000"]
[]
["Hoogte (mm):",null,null,null,null,null,null,null,null,"1500",null,null,null,null,null,null,null,"1800",null,null,null,null,null,null,null,"2000",null,null,null,"(bodemvrijheid is 50 mm)"]
[]
["Kleur (RAL):",null,null,null,null,null,null,null,null,"6005",null,null,null,null,"6009",null,null,null,null,"7016",null,null,null,null,"9005",null,null,null,null,"9010",null,null,null,null,null,null,"Anders:"]
[]
["Linker paal",null,null,null,null,null,null,null,null,"Verlengde paal",null,null,null,null,null,null,"Paal op voetplaat",null,null,null,null,null,null,null,"Neppaal, 100 mm verlengd"]
["(van buitenaf gezien)",null,null,null,null,null,null,null,"Gaaskam",null,null,null,null,null,"Nee",null,null,"Ja",null,null,null,null,null,null,"(Neppaal voorzien van montagegaten)"]
[null,null,null,null,null,null,null,null,"Vloeiboren",null,null,null,null,null,"Nee",null,null,"Ja",null,"Aantal gaten"]
[]
["Rechter paal:",null,null,null,null,null,null,null,null,"Verlengde paal",null,null,null,null,null,null,"Paal op voetplaat",null,null,null,null,null,null,null,"Neppaal, 100 mm verlengd"]
["(van buitenaf gezien)",null,null,null,null,null,null,null,"Gaaskam",null,null,null,null,null,"Nee",null,null,"Ja",null,null,null,null,null,null,"(Neppaal voorzien van montagegaten)"]
[null,null,null,null,null,null,null,null,"Vloeiboren",null,null,null,null,null,"Nee",null,null,"Ja",null,"Aantal gaten"]
[]
["Draairichting:",null,null,null,null,null,null,null,null,"Naar binnen",null,null,null,null,null,null,null,null,null,null,null,null,null,null,"Naar buiten"]
["(van buitenaf gezien)"]
[]
[]
["Positie slot:",null,null,null,null,null,null,null,null,"In linkervleugel",null,null,null,null,null,null,null,null,null,null,null,null,null,null,"In rechtervleugel (standaard)"]
[]
["Extra:",null,null,null,null,null,null,null,null,"Bijlevereren undergatecatcher PRTVANGERUGC"]
[null,null,null,null,null,null,null,null,null,"Gelaste paalkappen"]
[null,null,null,null,null,null,null,null,null,"Gelijksluitende cilinders",null,null,null,null,null,null,null,null,"(indien meerdere poorten)"]
[null,null,null,null,null,null,null,null,null,"Bijleveren aluminium hoekprofielen om doorkijk te voorkomen (excl. assemblage)"]
[null,null,null,null,null,null,null,null,null,"(inclusief in het midden op één poortvleugel gelaste strip tegen doorkijk)"]
[]
["Opmerkingen:"]
[]
[]
[]
[]
["* Matentabel afstanden tussen de palen (mm):",null,null,null,null,null,null,null,null,null,null,null,null,null,null,null,null,null,null,null,null,"2000",null,"2500",null,"3000",null,"4000",null,"5000"]
[null,null,null,null,null,null,null,null,null,null,null,null,null,null,null,"Trento",null,null,null,null,null,"2114",null,"2516",null,"3118",null,"4004",null,"5008"]
[null,null,null,null,null,null,null,null,null,null,null,null,null,null,null,"Crosso",null,null,null,"V60",null,"2114",null,"2516",null,"3118",null,"4004",null,"5008"]
[null,null,null,null,null,null,null,null,null,null,null,null,null,null,null,null,null,null,null,"V10",null,"2114",null,"2372",null,"3118",null,"4004",null,"5008"]
[null,null,null,null,null,null,null,null,null,null,null,null,null,null,null,"Modeno",null,null,null,null,null,"2122",null,"2472",null,"3172",null,"4020",null,"4956"]
[null,null,null,null,null,null,null,null,null,null,null,null,null,null,null,"Polkadot",null,null,null,null,null,"2114",null,"2516",null,"3118",null,"4004",null,"5008"]
[null,null,null,null,null,null,null,null,null,null,null,null,null,null,null,"Carré",null,null,null,null,null,"2114",null,"2516",null,"3118",null,"4004",null,"5008"]

{"sheet":"STYX ENKEL","index":12,"n_rows":47,"n_cols":43,"rows_kept":47,"cut":false,"hidden":false,"merged":[[48,8,48,45],[49,8,49,45],[15,14,16,23],[23,33,23,45],[25,33,25,45],[46,8,46,45],[47,8,47,45],[29,24,29,27],[33,24,33,27],[21,33,21,45],[28,24,28,33],[32,24,32,33],[0,31,0,45],[1,8,1,22],[1,31,1,45],[2,8,2,22],[4,8,4,10],[0,8,0,22]]}
["Orderdatum:",null,null,null,null,null,null,null,{"$f":"TODAY()","v":"2016-07-22"},null,null,null,null,null,null,null,null,null,null,null,null,null,null,null,"Ingevuld door:",null,null,null,null,null,null,{"$f":"BESTELKNOPPEN!AF1","v":"-"}]
["Bedrijfsnaam:",null,null,null,null,null,null,null,{"$f":"BESTELKNOPPEN!I2","v":"-"},null,null,null,null,null,null,null,null,null,null,null,null,null,null,null,"Uw referentie:",null,null,null,null,null,null,{"$f":"BESTELKNOPPEN!AF2","v":"-"}]
["Contactpersoon:",null,null,null,null,null,null,null,{"$f":"BESTELKNOPPEN!I3","v":"-"}]
[]
["Aantal poorten:",null,null,null,null,null,null,null,1,null,null,"stuk(s)"]
[]
["Type:",null,null,null,null,null,null,null,null,"Styx Modeno",null,null,null,null,null,null,"Styx Trento",null,null,null,null,null,null,"Styx Crosso",null,null,null,null,null,null,"Styx Plaatvulling",null,null,null,null,null,null,null,"Styx Houtvulling"]
[null,null,null,null,null,null,null,null,"Vert. lamel 40x10 mm",null,null,null,null,null,null,"Vert. lamel 100 mm",null,null,null,null,null,null,"Vert. lamel 100 mm",null,null,null,null,null,null,"Vleugel voorbereid",null,null,null,null,null,null,null,"Vleugel voorbereid"]
[null,null,null,null,null,null,null,null,"Diagonaal",null,null,null,null,null,null,"Gesloten",null,null,null,null,null,null,"Gesloten - kruis",null,null,null,null,null,null,"voor plaatvulling",null,null,null,null,null,null,null,"voor houtvulling"]
[]
[]
[]
[]
[]
[]
[null,null,null,null,null,null,null,null,null,null,null,null,null,null,"(Bovenaanzicht richting lamellen van buitenaf gezien)",null,null,null,null,null,null,null,null,null,null,null,null,null,null,null,"Incl. plaatvulling",null,null,null,null,null,null,null,"Enkele houtvulling"]
[null,null,null,null,null,null,null,null,null,null,null,null,null,null,null,null,null,null,null,null,null,null,null,null,null,null,null,null,null,null,"Excl. plaatvulling",null,null,null,null,null,null,null,"Dubbele houtvulling"]
[]
["Scharnieren:",null,null,null,null,null,null,null,null,"180°",null,null,null,null,null,null,null,"90°"]
[]
["Breedte (mm):",null,null,null,null,null,null,null,null,"1105",null,null,null,"1305",null,null,null,"1505",null,null,null,"1805",null,null,null,"2005",null,null,null,"2305",null,null,null,"2505"]
["(standaard breedte i.c.m. 180° scharnieren. Bij keuze voor 90° kan deze maat afwijken)",null,null,null,null,null,null,null,null,null,null,null,null,null,null,null,null,null,null,null,null,null,null,null,null,null,null,null,null,"Anders:"]
[]
["Hoogte (mm):",null,null,null,null,null,null,null,null,"1000",null,null,null,"1250",null,null,null,"1500",null,null,null,"1800",null,null,null,"2000",null,null,null,"Anders:"]
[]
["Kleur (RAL):",null,null,null,null,null,null,null,null,"6005",null,null,null,"6009",null,null,null,"7016",null,null,null,"9005",null,null,null,"9010",null,null,null,"Anders:"]
[]
["Scharniert aan:",null,null,null,null,null,null,null,null,"Verlengde paal",null,null,null,null,null,null,"Paal op voetplaat",null,null,null,null,null,null,null,"Neppaal, 100 mm verlengd",null,null,null,null,null,null,null,null,null,null,null,"Muurplaatscharnieren"]
[null,null,null,null,null,null,null,null,"Gaaskam",null,null,null,null,null,"Nee",null,null,"Ja",null,null,null,null,null,null,"(Neppaal voorzien van montagegaten)",null,null,null,null,null,null,null,null,null,null,null,null,null,"Kort",null,null,null,"Hoek kort"]
[null,null,null,null,null,null,null,null,"Vloeiboren",null,null,null,null,null,"Nee",null,null,"Ja",null,"Aantal gaten",null,null,null,null,null,null,null,null,null,null,null,null,null,null,null,null,null,null,"Lang",null,null,null,"Hoek lang"]
[]
["Sluit op:",null,null,null,null,null,null,null,null,"Verlengde paal",null,null,null,null,null,null,"Paal op voetplaat",null,null,null,null,null,null,null,"Neppaal, 100 mm verlengd",null,null,null,null,null,null,null,null,null,null,null,"Muuraanslag"]
[null,null,null,null,null,null,null,null,"Gaaskam",null,null,null,null,null,"Nee",null,null,"Ja",null,null,null,null,null,null,"(Neppaal voorzien van montagegaten)",null,null,null,null,null,null,null,null,null,null,null,null,null,"Incl. montagekoker"]
[null,null,null,null,null,null,null,null,"Vloeiboren",null,null,null,null,null,"Nee",null,null,"Ja",null,"Aantal gaten"]
[]
["Draairichting:",null,null,null,null,null,null,null,null,"Links naar binnen",null,null,null,null,null,null,null,null,"Rechts naar binnen",null,null,null,null,null,null,null,null,"Links naar buiten",null,null,null,null,null,null,null,null,"Rechts naar buiten"]
["(van buitenaf gezien)"]
[]
[]
["Uitvoering:",null,null,null,null,null,null,null,null,"Handbediend",null,null,null,null,null,null,null,"Handbediend met varianten",null,null,null,null,null,null,null,null,null,null,null,null,"Voorbereid voor automatisering"]
[null,null,null,null,null,null,null,null,null,null,null,null,null,null,null,null,null,"(formulier varianten enkele draaipoort en/of voorbereiding automatisering toevoegen)"]
[]
["Extra:",null,null,null,null,null,null,null,null,"Bijlevereren undergatecatcher PRTVANGERUGC",null,null,null,null,null,null,null,null,null,null,null,null,null,null,null,null,null,null,null,"Gelaste paalkappen"]
[null,null,null,null,null,null,null,null,null,"Gelijksluitende cilinders",null,null,null,null,null,null,null,null,"(indien meerdere poorten)",null,null,null,null,null,null,null,null,null,null,"Inwendige grondgrendel"]
[null,null,null,null,null,null,null,null,null,"Bijleveren hoekprofielen om doorkijk te voorkomen (excl. assemblage)"]
[]
["Opmerkingen:"]

{"sheet":"STYX DUBBEL","index":13,"n_rows":48,"n_cols":43,"rows_kept":48,"cut":false,"hidden":false,"merged":[[19,33,19,45],[49,8,49,45],[50,8,50,45],[48,8,48,45],[21,33,21,45],[23,33,23,45],[47,8,47,45],[27,24,27,27],[31,24,31,27],[26,24,26,33],[30,24,30,33],[13,14,14,23],[0,31,0,45],[1,8,1,22],[1,31,1,45],[2,8,2,22],[4,8,4,10],[0,8,0,22]]}
["Orderdatum:",null,null,null,null,null,null,null,{"$f":"TODAY()","v":"2016-07-22"},null,null,null,null,null,null,null,null,null,null,null,null,null,null,null,"Ingevuld door:",null,null,null,null,null,null,{"$f":"BESTELKNOPPEN!AF1","v":"-"}]
["Bedrijfsnaam:",null,null,null,null,null,null,null,{"$f":"BESTELKNOPPEN!I2","v":"-"},null,null,null,null,null,null,null,null,null,null,null,null,null,null,null,"Uw referentie:",null,null,null,null,null,null,{"$f":"BESTELKNOPPEN!AF2","v":"-"}]
["Contactpersoon:",null,null,null,null,null,null,null,{"$f":"BESTELKNOPPEN!I3","v":"-"}]
[]
["Aantal poorten:",null,null,null,null,null,null,null,1,null,null,"stuk(s)"]
[]
["Type:",null,null,null,null,null,null,null,null,"Styx Modeno",null,null,null,null,null,null,"Styx Trento",null,null,null,null,null,null,"Styx Crosso",null,null,null,null,null,null,"Styx Plaatvulling",null,null,null,null,null,null,null,"Styx Houtvulling"]
[null,null,null,null,null,null,null,null,"Vert. lamel 40x10 mm",null,null,null,null,null,null,"Vert. lamel 100 mm",null,null,null,null,null,null,"Vert. lamel 100 mm",null,null,null,null,null,null,"Vleugel voorbereid",null,null,null,null,null,null,null,"Vleugel voorbereid"]
[null,null,null,null,null,null,null,null,"Diagonaal",null,null,null,null,null,null,"Gesloten",null,null,null,null,null,null,"Gesloten - kruis",null,null,null,null,null,null,"voor plaatvulling",null,null,null,null,null,null,null,"voor houtvulling"]
[]
[]
[]
[]
[null,null,null,null,null,null,null,null,null,null,null,null,null,null,"(Bovenaanzicht richting lamellen van buitenaf gezien)",null,null,null,null,null,null,null,null,null,null,null,null,null,null,null,"Incl. plaatvulling",null,null,null,null,null,null,null,"Enkele houtvulling"]
[null,null,null,null,null,null,null,null,null,null,null,null,null,null,null,null,null,null,null,null,null,null,null,null,null,null,null,null,null,null,"Excl. plaatvulling",null,null,null,null,null,null,null,"Dubbele houtvulling"]
[]
["Scharnieren:",null,null,null,null,null,null,null,null,"180°",null,null,null,null,null,null,null,"90°"]
[]
["Breedte (mm)",null,null,null,null,null,null,null,null,"2190",null,null,null,"2590",null,null,null,"2990",null,null,null,"3590",null,null,null,"3990",null,null,null,"4590",null,null,null,"4990"]
["(standaard breedte i.c.m. 180° scharnieren. Bij keuze voor 90° kan deze maat afwijken)",null,null,null,null,null,null,null,null,null,null,null,null,null,null,null,null,null,null,null,null,null,null,null,null,null,null,null,null,"Anders:"]
[]
["Hoogte (mm):",null,null,null,null,null,null,null,null,"1000",null,null,null,"1250",null,null,null,"1500",null,null,null,"1800",null,null,null,"2000",null,null,null,"Anders:"]
[]
["Kleur (RAL):",null,null,null,null,null,null,null,null,"6005",null,null,null,"6009",null,null,null,"7016",null,null,null,"9005",null,null,null,"9010",null,null,null,"Anders:"]
[]
["Linker paal",null,null,null,null,null,null,null,null,"Verlengde paal",null,null,null,null,null,null,"Paal op voetplaat",null,null,null,null,null,null,null,"Neppaal, 100 mm verlengd",null,null,null,null,null,null,null,null,null,null,null,"Muurplaatscharnieren"]
["(van buitenaf gezien)",null,null,null,null,null,null,null,"Gaaskam",null,null,null,null,null,"Nee",null,null,"Ja",null,null,null,null,null,null,"(Neppaal voorzien van montagegaten)",null,null,null,null,null,null,null,null,null,null,null,null,null,"Kort",null,null,null,"Hoek kort"]
[null,null,null,null,null,null,null,null,"Vloeiboren",null,null,null,null,null,"Nee",null,null,"Ja",null,"Aantal gaten",null,null,null,null,null,null,null,null,null,null,null,null,null,null,null,null,null,null,"Lang",null,null,null,"Hoek lang"]
[]
["Rechter paal:",null,null,null,null,null,null,null,null,"Verlengde paal",null,null,null,null,null,null,"Paal op voetplaat",null,null,null,null,null,null,null,"Neppaal, 100 mm verlengd",null,null,null,null,null,null,null,null,null,null,null,"Muurplaatscharnieren"]
["(van buitenaf gezien)",null,null,null,null,null,null,null,"Gaaskam",null,null,null,null,null,"Nee",null,null,"Ja",null,null,null,null,null,null,"(Neppaal voorzien van montagegaten)",null,null,null,null,null,null,null,null,null,null,null,null,null,"Kort",null,null,null,"Hoek kort"]
[null,null,null,null,null,null,null,null,"Vloeiboren",null,null,null,null,null,"Nee",null,null,"Ja",null,"Aantal gaten",null,null,null,null,null,null,null,null,null,null,null,null,null,null,null,null,null,null,"Lang",null,null,null,"Hoek lang"]
[]
["Draairichting:",null,null,null,null,null,null,null,null,"Naar binnen",null,null,null,null,null,null,null,null,null,null,null,null,null,null,"Naar buiten"]
["(van buitenaf gezien)"]
[]
[]
["Uitvoering:",null,null,null,null,null,null,null,null,"Handbediend",null,null,null,null,null,null,null,"Handbediend met varianten",null,null,null,null,null,null,null,null,null,null,null,null,"Voorbereid voor automatisering"]
[null,null,null,null,null,null,null,null,null,null,null,null,null,null,null,null,null,"(formulier varianten enkele draaipoort en/of voorbereiding automatisering toevoegen)"]
[]
[null,null,null,null,null,null,null,null,null,"Indien handbediend:",null,null,null,null,null,null,null,null,"Slot in linkervleugel",null,null,null,null,null,null,null,null,"Slot in rechtervleugel (standaard)"]
[]
["Extra:",null,null,null,null,null,null,null,null,"Bijleveren beton aanslagblok LAAG - BETONAANSLGB",null,null,null,null,null,null,null,null,null,null,null,null,null,null,null,null,null,null,null,"Gelaste paalkappen"]
[null,null,null,null,null,null,null,null,null,"Bijleveren beton aanslagblok HOOG - BETONAANSLGBH",null,null,null,null,null,null,null,null,null,null,null,null,null,null,null,null,null,null,null,"Inwendige grondgrendel 2e poortvleugel"]
[null,null,null,null,null,null,null,null,null,"Bijlevereren undergatecatcher - PRTVANGERUGC",null,null,null,null,null,null,null,null,null,null,null,null,null,null,null,null,null,null,null,"Gelijksluitende cilinders",null,null,null,null,null,null,null,null,"(indien meerdere poorten"]
[null,null,null,null,null,null,null,null,null,"Bijleveren hoekprofielen om doorkijk te voorkomen (excl. assemblage)"]
[]
["Opmerkingen:"]

{"sheet":"SPIJLENHEKWERK","index":14,"n_rows":40,"n_cols":39,"rows_kept":40,"cut":false,"hidden":false,"merged":[[42,9,42,45],[39,9,39,45],[40,9,40,45],[41,9,41,45],[12,10,12,12],[15,10,15,12],[15,21,15,23],[15,29,15,31],[16,10,16,12],[16,21,16,23],[16,29,16,31],[17,10,17,12],[17,21,17,23],[17,29,17,31],[18,10,18,12],[18,21,18,23],[35,9,35,11],[36,9,36,11],[34,29,34,31],[35,29,35,31],[36,29,36,31],[34,9,34,11],[37,29,37,31],[18,29,18,31],[28,34,28,45],[30,34,30,45],[32,34,32,45],[19,34,19,45],[21,38,21,45],[26,33,26,45],[13,34,13,45],[0,31,0,45],[1,8,1,22],[1,31,1,45],[2,8,2,22],[0,8,0,22]]}
["Orderdatum:",null,null,null,null,null,null,null,{"$f":"TODAY()","v":"2016-07-22"},null,null,null,null,null,null,null,null,null,null,null,null,null,null,null,"Ingevuld door:",null,null,null,null,null,null,{"$f":"BESTELKNOPPEN!AF1","v":"-"}]
["Bedrijfsnaam:",null,null,null,null,null,null,null,{"$f":"BESTELKNOPPEN!I2","v":"-"},null,null,null,null,null,null,null,null,null,null,null,null,null,null,null,"Uw referentie:",null,null,null,null,null,null,{"$f":"BESTELKNOPPEN!AF2","v":"-"}]
["Contactpersoon:",null,null,null,null,null,null,null,{"$f":"BESTELKNOPPEN!I3","v":"-"}]
[]
["Type:",null,null,null,null,null,null,null,null,null,"Vesta",null,null,null,null,null,null,"Orion",null,null,null,null,null,null,"Arena",null,null,null,null,null,null,"Tyro",null,null,null,null,null,null,"Mykadoo"]
[null,null,null,null,null,null,null,null,null,"Ronde spijlen",null,null,null,null,null,null,"Ronde spijlen",null,null,null,null,null,null,"Vierkante spijlen",null,null,null,null,null,null,"Vierkante spijlen",null,null,null,null,null,null,"Ronde spijlen motief"]
[]
[]
[]
[null,null,null,null,null,null,null,null,null,null,"Puntenkam",null,null,null,null,null,null,"Afgeschuind",null,null,null,null,null,null,"Afgeschuind",null,null,null,null,null,null,"Puntenkam"]
[null,null,null,null,null,null,null,null,null,null,"Geen puntenkam",null,null,null,null,null,null,"Recht",null,null,null,null,null,null,"Recht",null,null,null,null,null,null,"Geen puntenkam"]
[]
["Aantal standaard vakken:",null,null,null,null,null,null,null,null,null,null,null,null,"stuk(s)",null,null,null,"(een standaard vak is 2294 mm breed)"]
["Spijlen h.o.h. (mm):",null,null,null,null,null,null,null,null,null,"150 (standaard)",null,null,null,null,null,null,"132",null,null,null,null,null,null,"100",null,null,null,null,null,null,"Anders:"]
[]
["Aantal maatvakken:",null,null,null,null,null,null,null,null,null,null,null,null,"stuk(s)",null,null,null,"Afmeting:",null,null,null,null,null,null,"mm breed",null,null,null,null,null,null,null,"mm hoog"]
["Aantal maatvakken:",null,null,null,null,null,null,null,null,null,null,null,null,"stuk(s)",null,null,null,"Afmeting:",null,null,null,null,null,null,"mm breed",null,null,null,null,null,null,null,"mm hoog"]
["Aantal maatvakken:",null,null,null,null,null,null,null,null,null,null,null,null,"stuk(s)",null,null,null,"Afmeting:",null,null,null,null,null,null,"mm breed",null,null,null,null,null,null,null,"mm hoog"]
["Aantal maatvakken:",null,null,null,null,null,null,null,null,null,null,null,null,"stuk(s)",null,null,null,"Afmeting:",null,null,null,null,null,null,"mm breed",null,null,null,null,null,null,null,"mm hoog"]
["Spijlen h.o.h. (mm):",null,null,null,null,null,null,null,null,null,"150 (standaard)",null,null,null,null,null,null,"132",null,null,null,null,null,null,"100",null,null,null,null,null,null,"Anders:"]
[]
["Hoogte (mm):",null,null,null,null,null,null,null,null,null,"1000",null,null,null,null,"1250",null,null,null,null,"1500",null,null,null,null,"1800",null,null,null,null,"2000",null,null,null,null,"Anders:"]
[]
["Conservering:",null,null,null,null,null,null,null,null,null,"Gecoat (thermisch)",null,null,null,null,null,null,null,null,null,"Gecoat (sendzimir)",null,null,null,null,null,null,null,null,null,"Verzinkt (RAL n.v.t.)"]
[null,null,null,null,null,null,null,null,null,null,null,null,null,null,null,null,null,null,null,null,"(niet mogelijk bij Mykadoo)"]
[]
["Kleur (RAL):",null,null,null,null,null,null,null,null,null,"6005",null,null,null,"6009",null,null,null,"7016",null,null,null,"9005",null,null,null,"9010",null,null,null,"Anders:"]
[]
["Type verbinding:",null,null,null,null,null,null,null,null,null,"Blinde verbinding (standaard)",null,null,null,null,null,null,null,null,null,null,null,"Beugel verbinding",null,null,null,null,null,null,null,null,"Anders:"]
[]
["Afwerking staanders:",null,null,null,null,null,null,null,null,null,"Paalkap kunststof (standaard)",null,null,null,null,null,null,null,null,null,null,null,"Paalkap aluminium",null,null,null,null,null,null,null,null,"Anders:"]
[]
["Uitvoering staanders:",null,null,null,null,null,null,null,null,null,"800 mm verlengd (standaard)",null,null,null,null,null,null,null,null,null,null,null,"Op voetplaat",null,null,null,null,null,null,null,null,"Anders:"]
[]
["Aantal tussenstaanders:",null,null,null,null,null,null,null,null,null,null,null,"stuk(s)",null,null,null,null,"Aantal tussenverbindingen:",null,null,null,null,null,null,null,null,null,null,null,null,null,null,"stuk(s)"]
["Aantal eindstaanders:",null,null,null,null,null,null,null,null,null,null,null,"stuk(s)",null,null,null,null,"Aantal eind-/poortverbindingen:",null,null,null,null,null,null,null,null,null,null,null,null,null,null,"stuk(s)"]
["Aantal hoekstaanders:",null,null,null,null,null,null,null,null,null,null,null,"stuk(s)",null,null,null,null,"Aantal hoekverbindingen:",null,null,null,null,null,null,null,null,null,null,null,null,null,null,"stuk(s)"]
[null,null,null,null,null,null,null,null,null,null,null,null,null,null,null,null,null,"Aantal muurverbindingen:",null,null,null,null,null,null,null,null,null,null,null,null,null,null,"stuk(s)"]
[]
["Opmerkingen:"]